Cogmind - Beta 10.1 @@@ ROGUE MODE // 2021.07.18 @ 12:24:40 // Winter2019/RPGLIKE Player: Farfid Result: Destroyed by Architect with Modified Quantum Sheargun Performance ------------- Evolutions (9) 4500 Regions Visited (37) 7400 Robots Destroyed (1268) 6340 Value Destroyed (62858) 62858 Prototype IDs (152) 3040 Alien Tech Used (5) 1000 Bonus (81037) 81037 TOTAL SCORE: 166175 Bonus ------- Triggered High Security 2500 High Alert Combat Kills 38918 Follower Combat Kills 5538 Network Hubs Disabled 400 Met Imprinter 300 Triggered Deep Caves Wall 500 Exposed GOLEM Chamber 500 Met Zhirov 300 Met Warlord at Base 500 MAIN.C Attacked Warlord 500 Warlord Defense Kill 5146 Built Enhanced Grunts 300 A7 Reached Mainframe 300 Met R17 at Cetus 500 Found Hidden Lab 3000 Used Core Reset Matrix 3000 Hacked Protovariant 1000 Met Warlord at Research 2000 Invited to Help at Command 2000 Scanned by Researcher 500 Destroyed MAIN.C Guards 500 Met MAIN.C 5000 Destroyed MAIN.C Shell 5000 Destroyed MAIN.C 10000 Met Architect 300 Destroyed A8 300 Destroyed A6 400 Friendly Fire -8165 Cogmind --------- Core Integrity 0/2100 Matter 630/800 Energy 389/490 System Corruption 1% Temperature Cool (0) Movement Hovering (48) Location -1/Access_0 Parts ------- > --- POWER (2) -------- Improved Quantum Reactor Zero-point Reactor > --- PROPULSION (4) --- Combat Linear Gravjet Combat Linear Gravjet Combat Linear Gravjet Combat Linear Gravjet > --- UTILITY (13) ----- Experimental Terrain Scanner Experimental Targeting Computer Advanced Armor Integrity Analyzer Recoil Nullifier Precision Matter Filter Advanced Kinecellerator Improved Weapon Cycler Advanced Reaction Control System Advanced Phase Shifter SHELL Armor Experimental Shield Generator > --- WEAPON (5) ------- Helical Railgun Helical Railgun Helical Railgun Multirail Z-bomb Delivery System > --- INVENTORY (6) ---- Protomatter-79 Protomatter-69 Protomatter-75 Experimental Energy Well (1000) Improved System Restoration Module Long-range Tractor Beam Peak State ------------ > --- POWER ------------ Improved Quantum Reactor Improved Quantum Reactor > --- PROPULSION ------- Combat Linear Gravjet Combat Linear Gravjet Combat Linear Gravjet Combat Linear Gravjet > --- UTILITY ---------- Experimental Targeting Computer Experimental Core Analyzer Advanced Armor Integrity Analyzer Recoil Nullifier Precision Matter Filter Advanced Kinecellerator Improved Weapon Cycler Advanced Reaction Control System Advanced Phase Shifter Experimental Powered Armor Beam Splitter Experimental Shield Generator Improved System Restoration Module > --- WEAPON ----------- Helical Railgun Helical Railgun Helical Railgun Multirail Z-bomb Delivery System > --- INVENTORY -------- Protomatter Protomatter Experimental Energy Well Experimental Matter Compressor Experimental Terrain Scanner Transdimensional Reconstructor [Rating: 218] Favorites ----------- Power Improved Quantum Reactor Engine F-cell Engine Power Core Micro Fission Core Reactor Improved Quantum Reactor Propulsion Combat Linear Gravjet Wheel Wheel Hover Unit Combat Linear Gravjet Flight Unit Cesium-ion Thruster Utility Long-range Tractor Beam Device Long-range Tractor Beam Storage Experimental Energy Well Processor Experimental Targeting Computer Hackware Improved Hacking Suite Protection Improved Light Armor Plating Weapon Helical Railgun Energy Gun Medium Laser Energy Cannon Vortex Cannon Ballistic Gun Helical Railgun Ballistic Cannon Heavy Autocannon Launcher Tiamat Missile Launcher Special Weapon Advanced Remote Datajack Slashing Weapon Makeshift Sword Build | -11 -10 -10 -9 -9 -9 -8 -8 -8 -7 -7 -7 -7 -7 -6 -6 -6 -6 -6 -6 -5 -5 -5 -5 -4 -4 -4 -4 -4 -3 -3 -3 -3 -2 -2 -1 -1 -1 ------- Run | Scr Mat Min Mat Min Exi Min Mat Sto Fac Low Low Zio Dee Pro Fac Ext Cet Arc Hub Fac Upp Upp Zhi Pro Fac Upp Upp War Pro Res Arm Lab Res Tes Acc Com Ac0 Slots Evolved 20 | 2 . 1 1 2 . . 3 1 3 . . . . . 1 . 1 . . 1 . . . 1 . . . . . 1 . . 1 . . 1 . Power 1 | . . . . . . . . . 1 . . . . . . . . . . . . . . . . . . . . . . . . . . . . Propulsion 3 | 1 . . . 2 . . . . . . . . . . . . . . . . . . . . . . . . . . . . . . . . . Utility 12 | . . . . . . . 2 1 2 . . . . . 1 . 1 . . 1 . . . 1 . . . . . 1 . . 1 . . 1 . Weapon 4 | 1 . 1 1 . . . 1 . . . . . . . . . . . . . . . . . . . . . . . . . . . . . . Parts Attached 445 | 5 3 2 9 5 . 1 9 3 9 2 . 6 18 1 10 . 8 2 . 15 1 . 8 3 34 . 4 28 1 6 4 9 85 25 5 118 6 Power 38 | 1 . 1 3 . . . . . 4 1 . 1 . . . . . . . 1 . . . . 8 . . 7 1 . . . . 2 3 5 . Engine 8 | 1 . . 3 . . . . . 2 . . . . . . . . . . 1 . . . . . . . 1 . . . . . . . . . Core 10 | . . 1 . . . . . . 2 1 . . . . . . . . . . . . . . 6 . . . . . . . . . . . . Reactor 20 | . . . . . . . . . . . . 1 . . . . . . . . . . . . 2 . . 6 1 . . . . 2 3 5 . Propulsion 37 | 2 3 . . 4 . . . . . . . . 6 . . . . . . 1 . . 5 . 4 . . 3 . . 4 . . . . 5 . Treads . | . . . . . . . . . . . . . . . . . . . . . . . . . . . . . . . . . . . . . . Leg . | . . . . . . . . . . . . . . . . . . . . . . . . . . . . . . . . . . . . . . Wheel 5 | 2 3 . . . . . . . . . . . . . . . . . . . . . . . . . . . . . . . . . . . . Hover 31 | . . . . 4 . . . . . . . . 5 . . . . . . 1 . . 5 . 4 . . 3 . . 4 . . . . 5 . Flight 1 | . . . . . . . . . . . . . 1 . . . . . . . . . . . . . . . . . . . . . . . . Utility 267 | . . . 1 1 . . 5 1 2 . . 3 6 1 6 . 5 2 . 7 1 . 3 3 10 . . 7 . 6 . 6 65 19 2 100 5 Device 199 | . . . . . . . 3 1 2 . . 1 2 1 1 . 1 2 . 7 1 . 1 2 10 . . 6 . 6 . 5 49 14 2 77 5 Storage 16 | . . . . . . . . . . . . 1 . . . . 2 . . . . . 2 . . . . . . . . . 4 4 . 3 . Processor 18 | . . . . . . . 1 . . . . . . . 2 . . . . . . . . . . . . 1 . . . . 8 1 . 5 . Hackware 2 | . . . . . . . . . . . . . . . . . . . . . . . . 1 . . . . . . . . 1 . . . . Protection 32 | . . . 1 1 . . 1 . . . . 1 4 . 3 . 2 . . . . . . . . . . . . . . 1 3 . . 15 . Artifact . | . . . . . . . . . . . . . . . . . . . . . . . . . . . . . . . . . . . . . . Weapon 103 | 2 . 1 5 . . 1 4 2 3 1 . 2 6 . 4 . 3 . . 6 . . . . 12 . 4 11 . . . 3 20 4 . 8 1 Energy Gun 7 | 1 . . . . . . 2 . . . . 1 1 . . . . . . . . . . . 1 . 1 . . . . . . . . . . Energy Cannon 3 | . . . . . . . . . . . . . 1 . . . . . . . . . . . . . . 1 . . . 1 . . . . . Ballistic Gun 66 | 1 . . 5 . . 1 2 1 3 1 . . 3 . 4 . 3 . . 3 . . . . 9 . 2 8 . . . 2 12 1 . 5 . Ballistic Cannon 1 | . . . . . . . . . . . . . . . . . . . . . . . . . . . . 1 . . . . . . . . . Launcher 24 | . . 1 . . . . . 1 . . . 1 1 . . . . . . 3 . . . . 2 . . 1 . . . . 8 3 . 2 1 Special Weapon 1 | . . . . . . . . . . . . . . . . . . . . . . . . . . . . . . . . . . . . 1 . Impact Weapon . | . . . . . . . . . . . . . . . . . . . . . . . . . . . . . . . . . . . . . . Slashing Weapon 1 | . . . . . . . . . . . . . . . . . . . . . . . . . . . 1 . . . . . . . . . . Piercing Weapon . | . . . . . . . . . . . . . . . . . . . . . . . . . . . . . . . . . . . . . . Special Melee Weapon . | . . . . . . . . . . . . . . . . . . . . . . . . . . . . . . . . . . . . . . Unidentified Prototypes 78 | . . . 3 . . . 1 1 . . . 3 5 . 1 . 3 1 . 4 . . 3 . 5 . . 11 . 1 . 4 11 5 . 15 1 Parts Lost 4 | . . . . . . . . . . . . . . . . . . . . . . . . . 1 . . . . . . . 1 . . 2 . Power . | . . . . . . . . . . . . . . . . . . . . . . . . . . . . . . . . . . . . . . Propulsion 1 | . . . . . . . . . . . . . . . . . . . . . . . . . 1 . . . . . . . . . . . . Utility 3 | . . . . . . . . . . . . . . . . . . . . . . . . . . . . . . . . . 1 . . 2 . Weapon . | . . . . . . . . . . . . . . . . . . . . . . . . . . . . . . . . . . . . . . Highest Loss Streak 1 | . . . . . . . . . . . . . . . . . . . . . . . . . 1 . . . . . . . 1 . . 1 . Average Slot Usage (%) 96 | . 83 84 91 100 100 90 100 100 100 100 100 100 99 100 97 100 99 100 100 99 100 100 98 100 99 100 99 96 99 100 100 98 98 94 95 88 91 Engine 1 | . 16 5 7 11 10 10 8 7 6 . . . . . . . . . . 2 5 5 5 4 . . . . . . . . . . . . . Core 2 | . . 9 4 . . . . . 3 11 11 10 5 5 5 5 5 5 5 2 . . . . 5 4 4 1 . . . . . . . . . Reactor 4 | . . . . . . . . . . . . . 5 5 5 5 5 5 5 5 5 5 5 4 2 4 4 4 8 9 9 9 8 8 8 7 8 Wheel 1 | . 33 29 25 15 . . . . . . . . . . . . . . . . . . . . . . . . . . . . . . . . . Hover 19 | . . . . 14 40 40 34 29 23 23 23 23 23 23 22 22 21 21 21 20 20 20 18 19 18 19 19 19 19 18 18 18 17 17 17 16 16 Device 28 | . . . . . . . 8 15 27 29 29 29 29 29 27 27 26 26 26 31 35 35 35 34 32 33 33 32 33 35 36 34 35 34 34 33 33 Storage 1 | . . . . . . . . . . . . . . . . . 3 5 5 5 5 5 5 4 4 4 4 4 4 4 4 4 3 3 4 . . Processor 5 | . . . . . . . . . . . . . . . 4 11 10 10 10 7 5 5 5 4 4 4 4 7 9 9 9 9 8 8 8 8 8 Protection 2 | . . . 5 11 10 10 8 7 5 5 5 5 5 5 4 . . . . . . . . . . . . . . . . . . . . 1 4 Ballistic Gun 19 | . 16 14 33 34 30 20 26 29 23 23 23 23 21 23 22 22 21 21 21 20 20 20 20 19 18 19 18 18 19 18 18 17 17 17 17 16 16 Launcher 4 | . . 8 12 11 10 10 8 7 5 5 5 4 1 5 5 5 5 5 5 5 5 5 5 4 3 4 4 3 4 4 4 4 3 3 4 3 4 Naked Turns . | . . . . . . . . . . . . . . . . . . . . . . . . . . . . . . . . . . . . . . Heaviest Build 138 | 9 9 13 26 26 24 24 30 35 51 49 46 52 52 52 66 62 64 64 64 77 77 73 73 73 84 82 82 86 84 92 92 92 94 96 101 138 126 Greatest Support 138 | 37 37 25 25 93 93 93 93 93 93 93 93 93 93 93 93 93 93 93 93 93 93 93 93 83 83 82 82 89 89 97 138 138 138 138 138 138 138 Greatest Overweight (x) 1 | . . . 1 1 . . . . . . . . . . . . . . . . . . . . 1 . . 1 . 1 . . . . . 1 . Average Overweight (x) . | . . . . . . . . . . . . . . . . . . . . . . . . . . . . . . . . . . . . . . Largest Inventory Capacity 6 | 1 1 2 3 3 3 3 3 3 3 4 4 4 5 6 6 6 6 6 6 6 6 6 6 6 6 6 6 6 6 6 6 6 6 6 6 6 6 Average Capacity 5 | 1 1 1 2 3 3 3 3 3 3 3 4 4 4 5 6 6 6 6 6 6 6 6 6 6 6 6 6 6 6 6 6 6 6 6 6 6 6 Most Carried 6 | . 1 2 3 3 3 2 2 3 3 4 4 4 5 6 6 6 6 6 6 6 6 6 6 6 6 6 6 6 6 6 6 6 6 6 6 6 6 Average Carried 4 | . . 1 2 3 1 1 . 1 2 3 4 3 3 5 5 6 5 6 6 5 6 6 6 6 5 6 6 6 6 5 6 6 5 5 6 5 5 Final Capacity 6 | 1 1 2 3 3 3 3 3 3 3 4 4 4 5 6 6 6 6 6 6 6 6 6 6 6 6 6 6 6 6 6 6 6 6 6 6 6 6 Final Carried 6 | . . 2 3 3 1 1 . 2 3 4 4 3 5 5 6 6 6 6 6 6 6 6 6 6 6 6 6 6 6 6 6 6 6 6 6 5 6 Class Distribution -------------------- 50% | Scavenger-Scout 29% | Scavenger-Gunner 6% | Scavenger-Tank 4% | Scavenger-Mutant Dominant Class ---------------- Mutant | -10/Materials Mutant | -10/Mines Tank | -9/Materials Tank | -9/Mines Scavenger-Tank | -9/Exiles Scavenger-Mutant | -8/Mines Scavenger-Tank | -8/Materials Scavenger-Scout | -8/Storage Scavenger-Scout | -7/Factory Scavenger-Scout | -7/Lower Caves Scavenger-Scout | -7/Lower Caves Scavenger-Scout | -7/Zion Scavenger-Tank | -7/Deep Caves Scavenger-Tank | -6/Proximity Caves Scavenger-Gunner | -6/Factory Scavenger-Gunner | -6/Extension Scavenger-Gunner | -6/Cetus Scavenger-Gunner | -6/Archives Scavenger-Gunner | -6/Hub_04(d) Scavenger-Scout | -5/Factory Scavenger-Scout | -5/Upper Caves Scavenger-Scout | -5/Upper Caves Scavenger-Scout | -5/Zhirov Scavenger-Scout | -4/Proximity Caves Scavenger-Scout | -4/Factory Scavenger-Scout | -4/Upper Caves Scavenger-Scout | -4/Upper Caves Scavenger-Scout | -4/Warlord Scavenger-Scout | -3/Proximity Caves Scavenger-Scout | -3/Research Scavenger-Scout | -3/Armory Scavenger-Scout | -3/Lab Scavenger-Scout | -2/Research Scavenger-Scout | -2/Testing Scavenger-Scout | -1/Access Scavenger-Gunner | -1/Command Scavenger-Scout | -1/Access_0 Resources | -11 -10 -10 -9 -9 -9 -8 -8 -8 -7 -7 -7 -7 -7 -6 -6 -6 -6 -6 -6 -5 -5 -5 -5 -4 -4 -4 -4 -4 -3 -3 -3 -3 -2 -2 -1 -1 -1 ----------- Run | Scr Mat Min Mat Min Exi Min Mat Sto Fac Low Low Zio Dee Pro Fac Ext Cet Arc Hub Fac Upp Upp Zhi Pro Fac Upp Upp War Pro Res Arm Lab Res Tes Acc Com Ac0 Matter Collected 26780 | 250 90 71 524 83 . 381 540 700 642 303 96 632 437 542 364 697 205 47 344 1567 204 152 . 363 1966 199 204 704 220 612 394 . 1496 518 93 10741 399 Remotely 24038 | . . . . . . . . 686 642 303 96 632 437 542 364 697 205 47 344 1567 204 152 . 363 1956 196 204 704 220 612 394 . 1496 518 93 10103 261 Salvage Created 55130 | . 165 91 525 143 . 623 715 867 1948 738 139 970 1040 1312 1096 1731 312 . 1445 7420 1000 582 . 1016 6433 1041 261 1540 843 3033 1115 . 2023 683 291 13477 512 Parts 2733 | . 22 20 51 7 . 33 45 74 95 41 10 93 35 54 54 96 23 2 64 345 34 31 . 34 302 48 21 103 52 132 74 . 101 56 21 515 45 Haulers Intercepted 43 | . 1 . 4 . . . 2 3 2 . . . . . 1 5 . . 4 9 . . . . 5 . . . . 3 . . 2 1 1 . . Recyclers Shooed 9 | . . . . . . 1 . . . . . . . . 1 . . . 1 2 . . . . 3 . . . . . . . . . . 1 . Parts Field Recycled . | . . . . . . . . . . . . . . . . . . . . . . . . . . . . . . . . . . . . . . Retrieved Matter . | . . . . . . . . . . . . . . . . . . . . . . . . . . . . . . . . . . . . . . Parts Self-Destructed 491 | . . . . . . . . . . 37 10 . . 50 . . . . . . 32 36 . 30 . 52 21 171 52 . . . . . . . . Prevented 12 | . . . . . . . . . . . . . . 8 . . . . . . . . . . . . . 4 . . . . . . . . . Kills | -11 -10 -10 -9 -9 -9 -8 -8 -8 -7 -7 -7 -7 -7 -6 -6 -6 -6 -6 -6 -5 -5 -5 -5 -4 -4 -4 -4 -4 -3 -3 -3 -3 -2 -2 -1 -1 -1 ------- Run | Scr Mat Min Mat Min Exi Min Mat Sto Fac Low Low Zio Dee Pro Fac Ext Cet Arc Hub Fac Upp Upp Zhi Pro Fac Upp Upp War Pro Res Arm Lab Res Tes Acc Com Ac0 Combat Hostiles Destroyed 997 | . 7 8 11 2 . 15 15 23 19 18 5 4 52 20 17 18 4 1 21 147 13 10 . 19 116 20 5 41 19 38 26 . 42 10 6 216 9 Melee 1 | . . . . . . . . . . . . . . . . . . . . . . . . . 1 . . . . . . . . . . . . Guns 762 | . 7 5 7 2 . 10 10 17 19 17 5 4 16 20 14 18 4 1 15 94 13 10 . 13 96 15 5 37 16 28 14 . 29 10 2 180 9 AOE 230 | . . 3 4 . . 5 5 6 . 1 . . 32 . 3 . . . 6 53 . . . 6 19 5 . 4 3 10 12 . 13 . 4 36 . Classes Destroyed 31 | . 4 . 3 1 . 3 1 2 1 1 . 2 4 2 . . . . . 2 . . . . . . . 3 . . . . . . . 2 . Worker 61 | . 2 1 2 . . 1 2 3 8 . . . . . 1 1 . . 5 9 . . . . 8 . . . . 11 . . . . . 7 . Builder 18 | . . . . . . 1 1 3 . . . . . . 1 2 . . . 4 . . . . 2 . . . . 2 . . . . 2 . . Tunneler 5 | . . . 1 . . . . . 3 . . . . . . . . . 1 . . . . . . . . . . . . . . . . . . Hauler 43 | . 1 . 4 . . . 2 3 2 . . . . . 1 5 . . 4 9 . . . . 5 . . . . 3 . . 2 1 1 . . Recycler 34 | . . . . . . 3 2 . 8 . . . . . 1 2 . . 2 2 . . . . 2 . . . . 6 . . . . . 6 . Minesweeper 2 | . . . . . . . . . . 1 . . . . . . . . . . 1 . . . . . . . . . . . . . . . . Mechanic 23 | . . . . . . . . . . . . . . 1 . . . . . 5 . . . 1 3 . . 1 . . 1 . . . . 11 . Operator 4 | . . . . . . . . . . . . . . . . . . . . 1 . . . . 2 . . . . . 1 . . . . . . Watcher 13 | . . . 2 . . . . . 1 . . . . . . 1 . . . 2 . . . . 3 . . . . 1 1 . 1 . . 1 . Swarmer 153 | . 6 6 4 . . 4 7 . . 3 . . . . 3 3 . . 7 15 1 . . 3 13 8 . 9 9 16 9 . 14 . . 13 . Saboteur 25 | . . . . . . . . . . . . . . . . . . . . 9 . . . . 3 . . 4 . . 3 . . . . 6 . Grunt 336 | . 1 2 4 . . 9 5 12 12 12 3 . . 9 8 8 1 . 5 58 7 5 . 10 50 4 1 8 8 15 4 . 6 1 5 63 . Brawler 45 | . . . . . . . . 3 . . . . . 3 . . . . . 7 . . . 1 5 2 . 2 . 1 1 . 1 . . 19 . Duelist 48 | . . . . . . 2 . 1 2 1 . . . 1 3 . . . . 9 1 2 . . 9 2 . 2 . 1 . . . . . 12 . Protector 32 | . . . . . . . . 2 . . . . . . . . . . . 8 . . . . 7 . . 1 . 1 1 . . 2 . 10 . Sentry 67 | . . . 3 . . . 1 2 3 2 1 . . 2 1 6 . 1 7 8 1 2 . 1 6 2 . 1 . 4 2 . 3 . 1 7 . Demolisher 7 | . . . . 2 . . . 2 . . . . . . . . . . . . . . . . . . . . . . . . . . . 3 . Specialist 5 | . . . . . . . . . . . . . . . . . . . . . . . . . . . . 1 . . 2 . . . . 2 . Hunter 76 | . . . . . . . 2 1 1 . . . . 3 2 . . . 2 19 2 . . 2 8 . . 5 . . . . 3 . . 26 . Programmer 81 | . . . . . . . . . 1 . 1 . . 1 . 1 . . . 14 1 . . 1 15 2 2 4 1 . 4 . 2 7 . 24 . Behemoth 7 | . . . . . . . . . . . . . . 1 . . . . . . . 1 . 1 . . 1 . 1 . . . . . . 2 . Cetus Guard 3 | . . . . . . . . . . . . . . . . . 3 . . . . . . . . . . . . . . . . . . . . M Guard 2 | . . . . . . . . . . . . . . . . . . . . . . . . . . . . . . . . . . . . 2 . Enhanced Grunt 5 | . . . . . . . . . . . . . . . . . . . . . . . . . . . . . . . . . . . . . 5 Enhanced Hunter 2 | . . . . . . . . . . . . . . . . . . . . . . . . . . . . . . . . . . . . . 2 Combat Programmer 1 | . . . . . . . . . . . . . . . . . . . . . . . . . . . . . . . . . . . . 1 . Investigator 2 | . . . . . . . . . . . . . . . . . . . . . . . . . . . . . . . . . . . . 2 . Striker 17 | . . . . . . . . . . . . . . . . . . . . . . . . . . . . 2 . . . . 7 . . 8 . Executioner 23 | . . . . . . . . . . . . . . . . . . . . . . . . . . . . 3 . . . . 6 . . 14 . Alpha 7 2 | . . . . . . . . . . . . . . . . . . . . . . . . . . . . . . . . . . . . 2 . Zionite 40 | . . . . . . . . . . . . 40 . . . . . . . . . . . . . . . . . . . . . . . . . Z-Light 3 | . . . . . . . . . . . . . 3 . . . . . . . . . . . . . . . . . . . . . . . . Assembler 2 | . . . . . . . . . . . . . 2 . . . . . . . . . . . . . . . . . . . . . . . . Assembled 63 | . . . . . . . . . . . . . 45 . . . . . . . . . . . . . . . . . . . . . . 18 . Golem 4 | . . . . . . . . . . . . . 4 . . . . . . . . . . . . . . . . . . . . . . . . Thug 1 | . . . . . . . . . . . . . . . . 1 . . . . . . . . . . . . . . . . . . . . . Savage 1 | . . . . . . . . . . . . . . . . . 1 . . . . . . . . . . . . . . . . . . . . Butcher 1 | . . . . . . . . . . . . 1 . . . . . . . . . . . . . . . . . . . . . . . . . Martyr 1 | . . . . . . . . . . . . 1 . . . . . . . . . . . . . . . . . . . . . . . . . Mutant 3 | . . . . . . . . . . . . 1 . . . . . . . . . . . . . . 1 . . . . . . 1 . . . Best Kill Streak 40 | . 9 3 7 2 . 7 9 9 12 5 2 40 38 7 8 4 3 1 10 26 6 4 . 9 31 8 1 21 6 15 12 . 9 3 5 27 6 Combat Bots Only 36 | . 7 3 4 2 . 5 5 8 5 5 2 1 36 7 8 3 3 1 5 25 6 4 . 9 30 8 1 20 6 10 10 . 9 3 4 24 6 Max Kills in Single Turn 12 | . 1 2 4 1 . 3 3 5 2 2 1 2 12 2 3 3 2 1 4 9 2 2 . 3 4 3 1 3 3 7 2 . 9 2 4 7 2 Gunslinging 2 | . . . 1 . . . . 1 1 1 . . 1 1 . 1 1 . . 1 1 1 . 1 2 1 . 1 2 1 . . 1 1 1 2 1 Exploded 12 | . . 2 3 . . 3 3 4 . 1 . . 12 . 2 . . . 2 8 . . . 3 4 3 . 3 2 4 2 . 9 . 4 5 . Melee 1 | . . . . . . . . . . . . . . . . . . . . . . . . . 1 . . . . . . . . . . . . Uniques/NPCs Destroyed 7 | . . . . . . . . . . . . 2 . . . . 1 . . . . . . . . . . . . . . . . . . 2 2 Imprinter (-7/Zion) NK-0LA (-7/Zion) A7 (-6/Cetus) MAIN.C Shell (-1/Command) MAIN.C (-1/Command) A8 (-1/Access_0) A6 (-1/Access_0) Combat | -11 -10 -10 -9 -9 -9 -8 -8 -8 -7 -7 -7 -7 -7 -6 -6 -6 -6 -6 -6 -5 -5 -5 -5 -4 -4 -4 -4 -4 -3 -3 -3 -3 -2 -2 -1 -1 -1 -------- Run | Scr Mat Min Mat Min Exi Min Mat Sto Fac Low Low Zio Dee Pro Fac Ext Cet Arc Hub Fac Upp Upp Zhi Pro Fac Upp Upp War Pro Res Arm Lab Res Tes Acc Com Ac0 Damage Taken 33116 | . 220 140 369 259 . 702 818 973 533 460 117 872 774 899 197 735 40 22 1013 2696 268 262 . 395 3243 155 75 1650 585 1080 548 . 1533 304 346 7826 3007 Core 25603 | . 176 115 279 195 . 501 597 750 397 368 84 655 614 647 121 567 31 17 830 2132 223 203 . 309 2560 127 59 1308 471 855 452 . 1249 236 272 6076 2127 Absorbed by Shields 5031 | . . . . . . . . . . . . . . . . 5 23 . . . . . . . . . . . . 245 206 . 543 111 126 2709 1063 Redirected to Core 22354 | . 131 82 246 131 . 408 516 582 377 253 84 528 531 588 112 540 31 17 614 1887 155 203 . 291 2357 96 51 1199 391 756 317 . 995 221 262 5609 1793 Core Remaining (%) 95 | 100 . 95 . . . 100 . 100 . . . . . 100 . . . . 68 . . . . 99 . . . . 94 . . 100 . 98 . . . Volleys Fired 1836 | . 20 20 37 4 . 53 50 62 69 33 12 71 75 61 33 53 13 3 41 157 25 19 . 25 159 19 13 49 26 64 50 5 68 32 16 344 55 Largest 5 | . 2 2 3 3 . 3 4 4 4 4 4 4 4 4 4 4 4 4 4 5 4 4 . 5 5 4 4 5 4 5 5 4 4 4 4 5 4 Hottest 198 | . 70 70 69 69 . 69 124 99 106 111 111 111 111 111 132 132 138 138 138 178 135 135 . 178 186 140 140 198 152 198 198 152 152 152 152 196 159 Shots Fired 6346 | . 40 37 88 11 . 108 150 179 276 125 48 282 139 242 129 212 52 12 143 581 97 76 . 95 597 66 49 191 91 217 125 11 229 82 32 1316 218 Gun 6197 | . 40 34 84 11 . 104 146 177 276 124 48 282 135 242 128 212 52 12 139 549 97 76 . 91 567 64 49 187 87 210 114 11 226 81 32 1292 218 Cannon 1 | . . . . . . . . . . . . . . . . . . . . . . . . . . . . 1 . . . . . . . . . Launcher 148 | . . 3 4 . . 4 4 2 . 1 . . 4 . 1 . . . 4 32 . . . 4 30 2 . 3 4 7 11 . 3 1 . 24 . Special . | . . . . . . . . . . . . . . . . . . . . . . . . . . . . . . . . . . . . . . Kinetic 6104 | . 20 17 84 11 . 104 138 177 276 124 48 282 87 242 128 212 52 12 139 549 97 76 . 91 567 64 49 187 87 210 114 11 226 81 32 1292 218 Thermal 45 | . 20 17 . . . . 8 . . . . . . . . . . . . . . . . . . . . . . . . . . . . . . Explosive 148 | . . 3 4 . . 4 4 2 . 1 . . 4 . 1 . . . 4 32 . . . 4 30 2 . 3 4 7 11 . 3 1 . 24 . Electromagnetic 48 | . . . . . . . . . . . . . 48 . . . . . . . . . . . . . . . . . . . . . . . . Entropic 1 | . . . . . . . . . . . . . . . . . . . . . . . . . . . . 1 . . . . . . . . . Robot Hit Streak 65 | . 5 19 17 27 . 63 17 13 21 19 16 12 17 21 37 35 25 18 39 58 52 57 . 48 60 41 48 37 34 28 32 . 39 30 8 65 36 Robot Miss Streak 6 | . 3 4 6 . . 1 3 4 3 3 2 3 3 5 3 2 2 . 3 3 1 1 . 1 2 2 . 2 2 3 1 . 2 2 1 3 2 Penetration Max 2 | . . . . . . . . 1 1 . 1 1 1 1 2 2 2 . 1 2 1 1 . 1 1 1 . 2 1 2 1 . 2 1 1 2 1 Secondary Targets 244 | . 4 . 3 1 . 2 5 4 5 6 1 14 8 7 4 6 2 1 . 18 6 2 . 6 25 5 . 13 6 9 4 . 6 2 2 61 6 Max Gunslinging Chain 2 | . 1 . 2 1 . 1 1 1 2 2 1 2 2 1 1 1 2 1 . 1 1 1 . 2 2 1 . 1 2 1 1 . 2 1 1 2 1 Shots Hit Robots 4604 | . 24 24 60 10 . 93 106 103 173 85 28 170 91 163 97 157 43 12 85 442 78 59 . 80 429 50 34 156 60 134 74 . 169 48 16 1066 185 Core Hits 2904 | . 12 12 31 6 . 35 40 59 68 37 9 56 126 52 59 81 20 4 61 343 30 24 . 45 277 28 9 99 31 102 58 . 93 23 18 869 87 Critical Hits 572 | . . . . . . . . 4 4 4 2 11 2 9 21 87 15 1 23 101 16 7 . 14 102 10 5 30 3 8 4 . 8 3 . 67 11 Critical Kills 181 | . . . . . . . . 2 2 2 1 3 1 3 7 27 4 . 12 33 2 1 . 3 33 8 1 12 1 4 . . 2 2 . 15 . Critical Parts Destroyed 318 | . . . . . . . . 2 2 2 1 7 1 6 14 46 7 1 11 65 14 2 . 6 64 1 3 12 1 2 2 . 6 1 . 30 9 Melee Attacks . | . . . . . . . . . . . . . . . . . . . . . . . . . . . . . . . . . . . . . . Impact . | . . . . . . . . . . . . . . . . . . . . . . . . . . . . . . . . . . . . . . Slashing . | . . . . . . . . . . . . . . . . . . . . . . . . . . . . . . . . . . . . . . Piercing . | . . . . . . . . . . . . . . . . . . . . . . . . . . . . . . . . . . . . . . Sneak Attacks . | . . . . . . . . . . . . . . . . . . . . . . . . . . . . . . . . . . . . . . Combat Hostiles . | . . . . . . . . . . . . . . . . . . . . . . . . . . . . . . . . . . . . . . Follow-up Attacks . | . . . . . . . . . . . . . . . . . . . . . . . . . . . . . . . . . . . . . . Damage Inflicted 200991 | . 339 529 1228 149 . 1589 1789 2556 3365 1802 608 3296 4416 3280 1977 1278 997 255 3447 25916 2546 2255 . 3737 21481 2266 1236 7751 3063 8021 4994 . 8386 2425 1818 65609 6587 Guns 152920 | . 339 281 934 149 . 1306 1525 2046 3365 1546 608 3296 1643 3280 1614 1278 997 255 2016 16136 2546 2255 . 2327 15740 1726 1236 6665 2357 5781 2993 . 7263 2280 697 49853 6587 Cannons . | . . . . . . . . . . . . . . . . . . . . . . . . . . . . . . . . . . . . . . Explosions 48071 | . . 248 294 . . 283 264 510 . 256 . . 2773 . 363 . . . 1431 9780 . . . 1410 5741 540 . 1086 706 2240 2001 . 1123 145 1121 15756 . Melee . | . . . . . . . . . . . . . . . . . . . . . . . . . . . . . . . . . . . . . . Ramming . | . . . . . . . . . . . . . . . . . . . . . . . . . . . . . . . . . . . . . . Kinetic 151965 | . 213 169 934 149 . 1306 1433 2046 3365 1546 608 3296 1018 3280 1614 1278 997 255 2016 16136 2546 2255 . 2327 15740 1726 1236 6665 2357 5781 2993 . 7263 2280 697 49853 6587 Thermal 795 | . 126 112 . . . . 92 . . . . . 33 . 84 . . . . 106 . . . . 242 . . . . . . . . . . . . Explosive 47149 | . . 248 294 . . 283 264 510 . 256 . . 2740 . 171 . . . 1198 9558 . . . 1410 5499 540 . 1086 706 2240 2001 . 1123 145 1121 15756 . Electromagnetic 1082 | . . . . . . . . . . . . . 625 . 108 . . . 233 116 . . . . . . . . . . . . . . . . . Impact . | . . . . . . . . . . . . . . . . . . . . . . . . . . . . . . . . . . . . . . Slashing . | . . . . . . . . . . . . . . . . . . . . . . . . . . . . . . . . . . . . . . Piercing . | . . . . . . . . . . . . . . . . . . . . . . . . . . . . . . . . . . . . . . Highest Corruption 13 | . . . 5 5 5 5 . . 2 2 2 5 5 6 . . . . 4 2 2 2 2 4 12 13 13 13 6 . 1 1 2 6 . 9 1 Average Corruption 4 | . . . 5 5 5 5 . . 1 2 2 2 5 5 . . . . 2 1 2 2 2 3 7 12 13 4 6 . 1 1 2 3 . 4 1 Corruption Purged 14 | . . . . . . . . . . . . . . . . . . . . . . . . . . . . . . . . . . . . 14 . Effects 444 | . . . 12 2 2 19 . . 15 10 7 9 24 41 . . . . 1 21 6 6 1 15 29 34 35 6 24 . . . 2 17 . 105 1 Message Errors 75 | . . . 1 . 1 3 . . 3 4 4 2 8 7 . . . . . 3 1 . 1 1 2 1 5 1 6 . . . . 4 . 17 . Matter Fused 62 | . . . 4 1 . 1 . . . . . 2 5 6 . . . . . . . . . 3 3 6 8 2 5 . . . . . . 16 . Heat Flow Errors 37 | . . . . . 1 2 . . 1 1 1 . 1 4 . . . . . 2 . 2 . 1 . 1 1 . 2 . . . . 3 . 14 . Energy Discharges 31 | . . . 2 . . . . . 1 1 . . . 2 . . . . 1 3 1 . . 2 3 2 2 1 . . . . . 2 . 8 . Parts Rejected 4 | . . . . . . . . . . . . . 1 1 . . . . . . . . . . 1 . . . 1 . . . . . . . . Data Loss (minor) 41 | . . . . . . 3 . . 4 2 . . 1 2 . . . . . 1 3 1 . 3 1 3 2 1 1 . . . . 1 . 12 . Data Loss (major) 5 | . . . . . . . . . . . . . . . . . . . . . . . . . . 1 2 . 1 . . . . . . 1 . Misfires 8 | . . . . . . 2 . . . . . . 1 1 . . . . . . . . . . . 1 . 1 . . . . . 1 . 1 . Alerts 1 | . . . . . . . . . . . . . . . . . . . . . . . . . . 1 . . . . . . . . . . . Misdirections 20 | . . . . . . . . . . . . . . . . . . . . . . . . . 2 8 10 . . . . . . . . . . Targeting Errors 131 | . . . 2 . . 7 . . 6 1 2 3 6 15 . . . . . 5 1 3 . 4 14 8 5 . 7 . . . 1 5 . 35 1 Weapon Failures 29 | . . . 3 1 . 1 . . . 1 . 2 1 3 . . . . . 7 . . . 1 3 2 . . 1 . . . 1 1 . 1 . Overload Shots . | . . . . . . . . . . . . . . . . . . . . . . . . . . . . . . . . . . . . . . Overflow Damage 3880 | . . 10 21 . . 8 . . . 8 . . 126 . 3 . . . 53 344 . . . 66 341 26 . 15 56 85 63 . . . 136 2519 . Projectiles . | . . . . . . . . . . . . . . . . . . . . . . . . . . . . . . . . . . . . . . Explosions 3880 | . . 10 21 . . 8 . . . 8 . . 126 . 3 . . . 53 344 . . . 66 341 26 . 15 56 85 63 . . . 136 2519 . Melee . | . . . . . . . . . . . . . . . . . . . . . . . . . . . . . . . . . . . . . . Knockbacks . | . . . . . . . . . . . . . . . . . . . . . . . . . . . . . . . . . . . . . . Impact . | . . . . . . . . . . . . . . . . . . . . . . . . . . . . . . . . . . . . . . Kinetic . | . . . . . . . . . . . . . . . . . . . . . . . . . . . . . . . . . . . . . . Secondary . | . . . . . . . . . . . . . . . . . . . . . . . . . . . . . . . . . . . . . . Self-Inflicted Damage 583 | . . . . . . . . . . 12 . . 50 . . . . . 184 146 . . . . 8 . . . . 47 . . . . . 136 . Shots 11 | . . . . . . . . . . 1 . . 1 . . . . . 2 4 . . . . 1 . . . . 1 . . . . . 1 . Rammed . | . . . . . . . . . . . . . . . . . . . . . . . . . . . . . . . . . . . . . . Targets Rammed . | . . . . . . . . . . . . . . . . . . . . . . . . . . . . . . . . . . . . . . Kicked . | . . . . . . . . . . . . . . . . . . . . . . . . . . . . . . . . . . . . . . Crushed . | . . . . . . . . . . . . . . . . . . . . . . . . . . . . . . . . . . . . . . Highest Temperature 277 | . . 2 9 . 259 239 . . 214 198 249 24 126 209 58 62 28 30 46 121 79 155 . 74 98 179 51 172 188 21 24 46 . 196 . 277 . Average Temperature 23 | . . 2 6 . 140 114 . . 16 21 37 9 22 28 19 19 20 21 23 29 29 29 . 23 21 31 17 12 48 9 11 27 . 63 . 19 . Received Heat Transfer 5451 | . 18 66 153 . . 387 207 180 210 222 63 27 247 240 108 223 4 6 144 858 126 87 . 54 591 . 30 135 93 195 87 . 96 18 30 474 72 Siege Activations . | . . . . . . . . . . . . . . . . . . . . . . . . . . . . . . . . . . . . . . Robots Corrupted 4 | . . . . . . . . . . . . . 4 . . . . . . . . . . . . . . . . . . . . . . . . Combat Hostiles 4 | . . . . . . . . . . . . . 4 . . . . . . . . . . . . . . . . . . . . . . . . Parts Fried 1 | . . . . . . . . . . . . . . . . . . . 1 . . . . . . . . . . . . . . . . . . Impact Corruptions . | . . . . . . . . . . . . . . . . . . . . . . . . . . . . . . . . . . . . . . Robots Melted . | . . . . . . . . . . . . . . . . . . . . . . . . . . . . . . . . . . . . . . Combat Hostiles . | . . . . . . . . . . . . . . . . . . . . . . . . . . . . . . . . . . . . . . Parts Melted 4 | . . . . . . . . . . . . . . . . . . . . . 1 . . . . . . 1 . . . . . . . 2 . Heat Transferred 1238 | . 370 333 . . . . 185 . . . . . . . 50 . . . . 100 . . . . 200 . . . . . . . . . . . . Parts Sabotaged 10 | . . . . . . . . . . . . . . . . . . . . 2 . . . . 2 . . . . . . . . . . 6 . Parts Stolen . | . . . . . . . . . . . . . . . . . . . . . . . . . . . . . . . . . . . . . . Parts Stripped . | . . . . . . . . . . . . . . . . . . . . . . . . . . . . . . . . . . . . . . Power Chain Reactions 3 | . . . . . . . . . 2 . . . 1 . . . . . . . . . . . . . . . . . . . . . . . . Missiles Intercepted 4 | . . . . . . . . . . . . . . . . . . . . . . . . . . . . . . . . . . . . 4 . Alert | -11 -10 -10 -9 -9 -9 -8 -8 -8 -7 -7 -7 -7 -7 -6 -6 -6 -6 -6 -6 -5 -5 -5 -5 -4 -4 -4 -4 -4 -3 -3 -3 -3 -2 -2 -1 -1 -1 ------- Run | Scr Mat Min Mat Min Exi Min Mat Sto Fac Low Low Zio Dee Pro Fac Ext Cet Arc Hub Fac Upp Upp Zhi Pro Fac Upp Upp War Pro Res Arm Lab Res Tes Acc Com Ac0 Peak Influence 6273 | . 222 325 742 226 . 388 438 865 931 . . . . . 390 886 862 462 2772 5160 . . . . 3748 . . . . 2000 2405 . 1370 1135 1142 6273 . Initial 1348 | . . 86 126 226 . . 78 131 378 . . . . . 141 29 412 344 161 1348 . . . . 146 . . . . 207 902 . . 707 668 253 . Average 1881 | . 99 185 457 208 . 197 230 539 639 . . . . . 252 491 716 424 1268 2655 . . . . 1613 . . . . 1232 1694 . 737 937 804 4119 . Maximum Alert Level 5 | . 1 1 3 1 . 1 2 3 3 . . . . . 1 3 3 2 5 5 . . . . 5 . . . . 5 5 . 4 4 4 5 . Low Security (%) 9 | 100 95 70 6 50 . 57 44 19 . . . . . . 35 16 . . 6 . . . . . 3 . . . . . . . 5 . . . . Level 1 11 | . 4 29 32 49 . 42 43 11 2 . . . . . 64 22 . 30 6 . . . . . 12 . . . . 8 . . 11 . . 2 . Level 2 11 | . . . 58 . . . 11 25 65 . . . . . . 28 37 69 17 . . . . . 6 . . . . 4 . . 20 . 16 2 . Level 3 19 | . . . 2 . . . . 44 32 . . . . . . 31 62 . 16 22 . . . . 12 . . . . 25 17 . 53 91 75 3 . Level 4 9 | . . . . . . . . . . . . . . . . . . . 13 12 . . . . 20 . . . . 37 28 . 8 8 7 10 . Level 5 10 | . . . . . . . . . . . . . . . . . . . 28 9 . . . . 11 . . . . 24 53 . . . . 18 . High Security 28 | . . . . . . . . . . . . . . . . . . . 11 56 . . . . 33 . . . . . . . . . . 63 . Max Security . | . . . . . . . . . . . . . . . . . . . . . . . . . . . . . . . . . . . . . . Sterilizations 1 | . . . . . . . . . . . . . . . . . . . . 1 . . . . . . . . . . . . . . . . . Squads Dispatched 165 | . 2 . 3 . . . 2 9 12 . . . . 1 2 2 1 . 9 28 . 1 . 1 31 . 1 . 1 4 3 . 2 8 . 42 . Investigation 23 | . 2 . 1 . . . 1 2 6 . . . . . 1 1 1 . 2 . . . . . 1 . 1 . 1 . 1 . . . . 2 . Extermination 10 | . . . . . . . . . 2 . . . . . . . . . . . . . . . 2 . . . . . 1 . . 2 . 3 . Reinforcement 22 | . . . 1 . . . 1 2 4 . . . . . 1 1 . . 3 3 . . . . . . . . . 1 . . 2 2 . 1 . Assault 102 | . . . 1 . . . . 4 . . . . . 1 . . . . 3 25 . 1 . 1 24 . . . . 2 1 . . 3 . 36 . Garrison 8 | . . . . . . . . 1 . . . . . . . . . . 1 . . . . . 4 . . . . 1 . . . 1 . . . Intercept . | . . . . . . . . . . . . . . . . . . . . . . . . . . . . . . . . . . . . . . Construction Impeded 1 | . . . . . . . . . . . . . . . . . . . . 1 . . . . . . . . . . . . . . . . . Haulers Reinforced 7 | . . . . . . . . . 1 . . . . . . . . . 1 2 . . . . . . . . . 1 . . 2 . . . . Stealth | -11 -10 -10 -9 -9 -9 -8 -8 -8 -7 -7 -7 -7 -7 -6 -6 -6 -6 -6 -6 -5 -5 -5 -5 -4 -4 -4 -4 -4 -3 -3 -3 -3 -2 -2 -1 -1 -1 --------- Run | Scr Mat Min Mat Min Exi Min Mat Sto Fac Low Low Zio Dee Pro Fac Ext Cet Arc Hub Fac Upp Upp Zhi Pro Fac Upp Upp War Pro Res Arm Lab Res Tes Acc Com Ac0 Distress Signals 64 | . . . 5 . . . . 2 2 . . . . . . 2 2 . 4 3 . . . . 4 . . . . 2 4 . 6 1 . 27 . Communications Jammed . | . . . . . . . . . . . . . . . . . . . . . . . . . . . . . . . . . . . . . . Distress Signals . | . . . . . . . . . . . . . . . . . . . . . . . . . . . . . . . . . . . . . . Times Spotted 1482 | . 10 10 23 8 . 17 23 40 33 19 5 43 53 25 22 33 11 4 58 210 14 12 . 21 162 16 8 61 16 48 43 . 52 31 18 309 24 Peak Tracking Total 47 | . 7 3 5 11 . 6 5 9 6 5 2 7 36 7 6 4 5 2 22 15 6 6 . 10 16 7 4 14 4 13 15 . 12 8 6 47 10 Tactical Retreats 85 | . . 2 . . . 2 2 . 1 1 . 3 1 1 2 1 . . 1 17 2 3 . 1 7 . . 1 1 . 4 . 6 5 5 16 . Traps | -11 -10 -10 -9 -9 -9 -8 -8 -8 -7 -7 -7 -7 -7 -6 -6 -6 -6 -6 -6 -5 -5 -5 -5 -4 -4 -4 -4 -4 -3 -3 -3 -3 -2 -2 -1 -1 -1 ------- Run | Scr Mat Min Mat Min Exi Min Mat Sto Fac Low Low Zio Dee Pro Fac Ext Cet Arc Hub Fac Upp Upp Zhi Pro Fac Upp Upp War Pro Res Arm Lab Res Tes Acc Com Ac0 Traps Triggered 15 | . 1 . . . . . . 2 1 . . . . . . . . . . 2 . . . . 3 . . 1 . . . . . . . 5 . Indirectly . | . . . . . . . . . . . . . . . . . . . . . . . . . . . . . . . . . . . . . . Trap Hack Attempts . | . . . . . . . . . . . . . . . . . . . . . . . . . . . . . . . . . . . . . . Triggered . | . . . . . . . . . . . . . . . . . . . . . . . . . . . . . . . . . . . . . . Disarmed . | . . . . . . . . . . . . . . . . . . . . . . . . . . . . . . . . . . . . . . Reprogrammed 17 | . . . . . . . . . . . . . . . . 4 . . . . . . . . 13 . . . . . . . . . . . . Reused 4 | . . . . . . . . . . . . . . . . . . . . . . . . . 4 . . . . . . . . . . . . Traps Extracted . | . . . . . . . . . . . . . . . . . . . . . . . . . . . . . . . . . . . . . . Installed 2 | . . . . . . . . . . . . . . . . . . . . . . 2 . . . . . . . . . . . . . . . Triggered 20 | . . . . . . . . . . . . . . 6 . . . . . . . . . 1 4 . . 5 . . . . . . . 4 . Machines | -11 -10 -10 -9 -9 -9 -8 -8 -8 -7 -7 -7 -7 -7 -6 -6 -6 -6 -6 -6 -5 -5 -5 -5 -4 -4 -4 -4 -4 -3 -3 -3 -3 -2 -2 -1 -1 -1 ---------- Run | Scr Mat Min Mat Min Exi Min Mat Sto Fac Low Low Zio Dee Pro Fac Ext Cet Arc Hub Fac Upp Upp Zhi Pro Fac Upp Upp War Pro Res Arm Lab Res Tes Acc Com Ac0 Machines Disabled 182 | . . . 3 . . . . 11 4 1 . . 1 . 4 5 . 1 20 17 3 1 . 2 37 1 4 1 3 10 13 2 4 13 3 16 2 Max in Single Turn 11 | . . . 1 . . . . 1 1 1 . . 1 . 2 . . . 11 5 2 1 . 1 4 1 2 1 3 1 1 1 1 2 3 2 1 Garrison Access 11 | . . . . . . . . 1 1 . . . . . 1 . . . 1 1 . . . . 2 . . . . 1 . . 2 . 1 . . Phase Generator 1 | . . . . . . . . . . . . . . . . . . . . . . . . . . . . . . . . . . . . 1 . Network Hub 2 | . . . . . . . . . . . . . . . . . . . 2 . . . . . . . . . . . . . . . . . . Energy Cycler 1 | . . . . . . . . . . . . . . . . . . . . . . . . . . . . . . . 1 . . . . . . Machines Sabotaged . | . . . . . . . . . . . . . . . . . . . . . . . . . . . . . . . . . . . . . . Garrisons Compromised . | . . . . . . . . . . . . . . . . . . . . . . . . . . . . . . . . . . . . . . Overloaded Fab Kills . | . . . . . . . . . . . . . . . . . . . . . . . . . . . . . . . . . . . . . . Fab Network Shutdowns 1 | . . . . . . . . . . . . . . . . . . . . . . . . . 1 . . . . . . . . . . . . Hacking | -11 -10 -10 -9 -9 -9 -8 -8 -8 -7 -7 -7 -7 -7 -6 -6 -6 -6 -6 -6 -5 -5 -5 -5 -4 -4 -4 -4 -4 -3 -3 -3 -3 -2 -2 -1 -1 -1 --------- Run | Scr Mat Min Mat Min Exi Min Mat Sto Fac Low Low Zio Dee Pro Fac Ext Cet Arc Hub Fac Upp Upp Zhi Pro Fac Upp Upp War Pro Res Arm Lab Res Tes Acc Com Ac0 Machines Accessed 147 | . 1 . 4 . 1 . 5 11 14 1 1 1 . . 14 11 1 . 8 12 2 . 4 . 18 1 2 2 1 4 6 1 4 5 8 4 . Terminals 98 | . . . 3 . . . 4 10 6 1 . . . . 9 11 1 . 7 8 1 . . . 11 . 1 . 1 4 4 . 1 5 6 4 . Fabricators 14 | . . . . . . . . . 3 . . . . . 2 . . . . 2 . . . . 3 . . . . . 2 . 1 . 1 . . Repair Stations . | . . . . . . . . . . . . . . . . . . . . . . . . . . . . . . . . . . . . . . Recycling Units 8 | . 1 . 1 . . . 1 1 4 . . . . . . . . . . . . . . . . . . . . . . . . . . . . Scanalyzers 3 | . . . . . . . . . . . . . . . 1 . . . . 1 . . . . 1 . . . . . . . . . . . . Garrison Access 11 | . . . . . . . . . 1 . . . . . 2 . . . 1 1 . . . . 3 . . . . . . . 2 . 1 . . Total Hacks 647 | . 1 . 10 . 1 . 19 43 37 5 1 1 . . 58 44 3 . 21 88 7 . 17 . 115 6 17 6 11 16 19 1 11 19 46 24 . Successful 373 | . 1 . 4 . 1 . 10 26 14 4 1 1 . . 33 30 1 . 6 40 7 . 17 . 78 6 10 6 10 7 7 1 6 10 21 15 . Failed 272 | . . . 6 . . . 8 17 23 1 . . . . 25 14 2 . 15 48 . . . . 37 . 6 . 1 9 12 . 5 9 25 9 . Catastrophic 42 | . . . 2 . . . . 1 3 . . . . . 1 1 . . 3 7 . . . . 6 . 2 . . 4 6 . . 4 2 . . Database Lockouts 2 | . . . . . . . 1 . . . . . . . . . . . . . . . . . . . 1 . . . . . . . . . . Manual 307 | . 1 . 9 . . . 12 27 17 2 . 4 . . 26 17 1 . 7 38 1 . . . 65 . 16 . 3 4 8 . 4 2 32 11 . Terminals 519 | . . . 9 . . . 18 42 24 5 . . . . 43 44 3 . 19 70 6 . . . 91 . 16 . 11 16 16 . 3 19 40 24 . Fabricators 55 | . . . . . . . . . 6 . . . . . 10 . . . . 11 . . . . 17 . . . . . 3 . 4 . 4 . . Repair Stations . | . . . . . . . . . . . . . . . . . . . . . . . . . . . . . . . . . . . . . . Recycling Units 10 | . 1 . 1 . . . 1 1 6 . . . . . . . . . . . . . . . . . . . . . . . . . . . . Scanalyzers 6 | . . . . . . . . . . . . . . . 2 . . . . 3 . . . . 1 . . . . . . . . . . . . Garrison Access 22 | . . . . . . . . . 1 . . . . . 3 . . . 2 4 . . . . 6 . . . . . . . 4 . 2 . . Terminal Hacks 242 | . . . 3 . 1 . 7 16 6 4 1 1 . . 15 21 1 . 5 22 7 . 17 . 44 6 7 6 9 7 6 1 2 8 12 7 . Record 31 | . . . . . 1 . . . . 3 1 . . . . . . . . . 5 . 5 . . 6 1 . 8 . . 1 . . . . . Part Schematic 23 | . . . . . . . . . . . . 1 . . 3 2 . . . 3 1 . 4 . 5 . 4 . . . . . . . . . . Robot Analysis 15 | . . . . . . . 1 . . . . . . . . 2 . . . 2 . . 4 . 2 . . . . 1 2 . . 1 . . . Prototype ID Bank 55 | . . . 1 . . . 4 7 2 1 . . . . 4 3 . . 3 4 . . 4 . 8 . 1 5 1 1 1 . 1 2 . 2 . Open Door 16 | . . . . . . . . 2 . . . . . . . 7 1 . . . 1 . . . . . 1 1 . . . . . . 3 . . Branch Access Points 6 | . . . 1 . . . 1 . 1 . . . . . 1 . . . . 1 . . . . 1 . . . . . . . . . . . . Emergency Access Points 2 | . . . . . . . . . . . . . . . . . . . . . . . . . 1 . . . . . . . . . . 1 . Machine Index 2 | . . . . . . . . . . . . . . . . . . . . 1 . . . . 1 . . . . . . . . . . . . Terminal Index 4 | . . . . . . . . . . . . . . . 1 . . . . 1 . . . . 2 . . . . . . . . . . . . Fabricator Index 1 | . . . . . . . . . . . . . . . . . . . . . . . . . 1 . . . . . . . . . . . . Alert Level 12 | . . . . . . . . 1 . . . . . . . 2 . . 1 1 . . . . 2 . . . . 1 1 . . . 2 1 . Unreport Threat 29 | . . . . . . . 1 2 3 . . . . . 3 1 . . . 5 . . . . 6 . . . . 2 1 . . . 5 . . Locate Traps 18 | . . . 1 . . . . 2 . . . . . . 1 2 . . 1 1 . . . . 7 . . . . 1 . . . . 1 1 . Reprogram Traps 5 | . . . . . . . . . . . . . . . . 1 . . . . . . . . 4 . . . . . . . . . . . . Recall Reinforcements 1 | . . . . . . . . 1 . . . . . . . . . . . . . . . . . . . . . . . . . . . . . Recall Assault 1 | . . . . . . . . . . . . . . . . . . . . . . . . . . . . . . 1 . . . . . . . Hauler Manifests 8 | . . . . . . . . 1 . . . . . . 1 . . . . 1 . . . . 2 . . . . . 1 . 1 1 . . . Registered Components 4 | . . . . . . . . . . . . . . . 1 . . . . 1 . . . . 1 . . . . . . . . . 1 . . Registered Prototypes 2 | . . . . . . . . . . . . . . . . . . . . 1 . . . . 1 . . . . . . . . . . . . Zone Layout 1 | . . . . . . . . . . . . . . . . 1 . . . . . . . . . . . . . . . . . . . . . Protovariant Controls 4 | . . . . . . . . . . . . . . . . . . . . . . . . . . . . . . . . . . 4 . . . Disengage Seal 2 | . . . . . . . . . . . . . . . . . . . . . . . . . . . . . . . . . . . . 2 . Fabricator Hacks 16 | . . . . . . . . . . . . . . . 5 . . . . 4 . . . . 7 . . . . . . . . . . . . Load Schematic 7 | . . . . . . . . . . . . . . . 2 . . . . 2 . . . . 3 . . . . . . . . . . . . Build 9 | . . . . . . . . . . . . . . . 3 . . . . 2 . . . . 4 . . . . . . . . . . . . Repair Station Hacks . | . . . . . . . . . . . . . . . . . . . . . . . . . . . . . . . . . . . . . . Recycling Unit Hacks . | . . . . . . . . . . . . . . . . . . . . . . . . . . . . . . . . . . . . . . Scanalyzer 4 | . . . . . . . . . . . . . . . 2 . . . . 2 . . . . . . . . . . . . . . . . . Insert Component 2 | . . . . . . . . . . . . . . . 1 . . . . 1 . . . . . . . . . . . . . . . . . Analyze 2 | . . . . . . . . . . . . . . . 1 . . . . 1 . . . . . . . . . . . . . . . . . Garrison Access Hacks 8 | . . . . . . . . . 1 . . . . . 1 . . . . 1 . . . . 2 . . . . . . . 2 . 1 . . Seal Access 8 | . . . . . . . . . 1 . . . . . 1 . . . . 1 . . . . 2 . . . . . . . 2 . 1 . . Unauthorized Hacks 103 | . 1 . 1 . . . 3 10 7 . . . . . 10 9 . . 1 11 . . . . 25 . 3 . 1 . 1 . 2 2 8 8 . Terminals 78 | . . . . . . . 2 9 2 . . . . . 7 9 . . 1 8 . . . . 18 . 3 . 1 . . . . 2 8 8 . Track 23 | . . . . . . . 1 2 1 . . . . . 1 3 . . . 2 . . . . 6 . 1 . 1 . . . . 1 2 2 . Assimilate 4 | . . . . . . . . . . . . . . . . 1 . . . . . . . . 3 . . . . . . . . . . . . Botnet 32 | . . . . . . . . 4 1 . . . . . 5 3 . . 1 4 . . . . 7 . 1 . . . . . . 1 3 2 . Detonate 3 | . . . . . . . . . . . . . . . 1 . . . . . . . . . . . . . . . . . . . 1 1 . Disrupt 6 | . . . . . . . 1 2 . . . . . . . 1 . . . 1 . . . . . . . . . . . . . . . 1 . Operators 9 | . . . . . . . . 1 . . . . . . . 1 . . . 1 . . . . 2 . . . . . . . . . 2 2 . Search 1 | . . . . . . . . . . . . . . . . . . . . . . . . . . . 1 . . . . . . . . . . Fabricators 14 | . . . . . . . . . 1 . . . . . 3 . . . . 3 . . . . 4 . . . . . 1 . 2 . . . . Report 3 | . . . . . . . . . . . . . . . 1 . . . . . . . . . 1 . . . . . . . 1 . . . . Prioritize 6 | . . . . . . . . . . . . . . . 2 . . . . 2 . . . . 2 . . . . . . . . . . . . Haulers 3 | . . . . . . . . . . . . . . . . . . . . 1 . . . . 1 . . . . . . . 1 . . . . Overload 1 | . . . . . . . . . 1 . . . . . . . . . . . . . . . . . . . . . . . . . . . . Download 1 | . . . . . . . . . . . . . . . . . . . . . . . . . . . . . . . 1 . . . . . . Repair Stations . | . . . . . . . . . . . . . . . . . . . . . . . . . . . . . . . . . . . . . . Recycling Units 8 | . 1 . 1 . . . 1 1 4 . . . . . . . . . . . . . . . . . . . . . . . . . . . . Tunnel 8 | . 1 . 1 . . . 1 1 4 . . . . . . . . . . . . . . . . . . . . . . . . . . . . Scanalyzers 1 | . . . . . . . . . . . . . . . . . . . . . . . . . 1 . . . . . . . . . . . . Extract 1 | . . . . . . . . . . . . . . . . . . . . . . . . . 1 . . . . . . . . . . . . Garrison Access 2 | . . . . . . . . . . . . . . . . . . . . . . . . . 2 . . . . . . . . . . . . Broadcast 1 | . . . . . . . . . . . . . . . . . . . . . . . . . 1 . . . . . . . . . . . . Reprogram 1 | . . . . . . . . . . . . . . . . . . . . . . . . . 1 . . . . . . . . . . . . Data Cores Recovered 3 | . . . 1 . . . . . . . . . . . . 1 . . . . . . . . . . . . . . 1 . . . . . . Used . | . . . . . . . . . . . . . . . . . . . . . . . . . . . . . . . . . . . . . . Hacking Detections 93 | . . . 3 . . . 3 8 10 1 . . . . 13 5 2 . 8 8 1 . . . 7 . . . 1 4 5 . 2 4 5 3 . Full Trace Events 8 | . . . . . . . . 1 1 . . . . . 1 1 1 . 2 . . . . . . . . . 1 . . . . . . . . Feedback Events . | . . . . . . . . . . . . . . . . . . . . . . . . . . . . . . . . . . . . . . Feedback Blocked . | . . . . . . . . . . . . . . . . . . . . . . . . . . . . . . . . . . . . . . Robot Schematics Acquired . | . . . . . . . . . . . . . . . . . . . . . . . . . . . . . . . . . . . . . . Robots Built . | . . . . . . . . . . . . . . . . . . . . . . . . . . . . . . . . . . . . . . Matter . | . . . . . . . . . . . . . . . . . . . . . . . . . . . . . . . . . . . . . . Time . | . . . . . . . . . . . . . . . . . . . . . . . . . . . . . . . . . . . . . . Total Robot Build Rating . | . . . . . . . . . . . . . . . . . . . . . . . . . . . . . . . . . . . . . . Part Schematics Acquired 27 | . . . . . . . . . . . . 1 . . 4 2 . . . 4 1 . 4 . 6 . 4 . . . 1 . . . . . . Parts Built 9 | . . . . . . . . . . . . . . . 5 . . . . 2 . . . . 2 . . . . . . . . . . . . Matter 1736 | . . . . . . . . . . . . . . . 570 . . . . 530 . . . . 636 . . . . . . . . . . . . Time 627 | . . . . . . . . . . . . . . . 237 . . . . 137 . . . . 253 . . . . . . . . . . . . Total Part Build Rating 49 | . . . . . . . . . . . . . . . 25 . . . . 12 . . . . 12 . . . . . . . . . . . . Parts Repaired . | . . . . . . . . . . . . . . . . . . . . . . . . . . . . . . . . . . . . . . Time . | . . . . . . . . . . . . . . . . . . . . . . . . . . . . . . . . . . . . . . Parts Recycled . | . . . . . . . . . . . . . . . . . . . . . . . . . . . . . . . . . . . . . . Recycled Matter . | . . . . . . . . . . . . . . . . . . . . . . . . . . . . . . . . . . . . . . Retrieved Matter . | . . . . . . . . . . . . . . . . . . . . . . . . . . . . . . . . . . . . . . Retrieved Components . | . . . . . . . . . . . . . . . . . . . . . . . . . . . . . . . . . . . . . . Parts Scanalyzed 2 | . . . . . . . . . . . . . . . 1 . . . . 1 . . . . . . . . . . . . . . . . . Part Schematics Acquired 2 | . . . . . . . . . . . . . . . 1 . . . . 1 . . . . . . . . . . . . . . . . . Parts Damaged . | . . . . . . . . . . . . . . . . . . . . . . . . . . . . . . . . . . . . . . Bothacking | -11 -10 -10 -9 -9 -9 -8 -8 -8 -7 -7 -7 -7 -7 -6 -6 -6 -6 -6 -6 -5 -5 -5 -5 -4 -4 -4 -4 -4 -3 -3 -3 -3 -2 -2 -1 -1 -1 ------------ Run | Scr Mat Min Mat Min Exi Min Mat Sto Fac Low Low Zio Dee Pro Fac Ext Cet Arc Hub Fac Upp Upp Zhi Pro Fac Upp Upp War Pro Res Arm Lab Res Tes Acc Com Ac0 Used RIF Installer . | . . . . . . . . . . . . . . . . . . . . . . . . . . . . . . . . . . . . . . Robots Hacked . | . . . . . . . . . . . . . . . . . . . . . . . . . . . . . . . . . . . . . . Non-combat . | . . . . . . . . . . . . . . . . . . . . . . . . . . . . . . . . . . . . . . Combat . | . . . . . . . . . . . . . . . . . . . . . . . . . . . . . . . . . . . . . . Robot Hacks Applied . | . . . . . . . . . . . . . . . . . . . . . . . . . . . . . . . . . . . . . . Relay Couplers Released 5 | . . . . . . . . 2 . . . . . . . . . . . . . . . . . . . . . 2 . . 1 . . . . Machine Destruction 4 | . . . . . . . . 2 . . . . . . . . . . . . . . . . . . . . . 2 . . . . . . . Programmers 1 | . . . . . . . . . . . . . . . . . . . . . . . . . . . . . . . . . 1 . . . . Robots Rewired 30 | . . . . . . . . . 2 . . . . 2 . 11 . . . . . 1 . 2 . 2 4 3 . . 3 . . . . . . Allies Hacked 3 | . . . . . . . . . . . . . . . . . . . . . . . . . 1 . . 1 . . 1 . . . . . . Hacks Repelled . | . . . . . . . . . . . . . . . . . . . . . . . . . . . . . . . . . . . . . . Allies | -11 -10 -10 -9 -9 -9 -8 -8 -8 -7 -7 -7 -7 -7 -6 -6 -6 -6 -6 -6 -5 -5 -5 -5 -4 -4 -4 -4 -4 -3 -3 -3 -3 -2 -2 -1 -1 -1 -------- Run | Scr Mat Min Mat Min Exi Min Mat Sto Fac Low Low Zio Dee Pro Fac Ext Cet Arc Hub Fac Upp Upp Zhi Pro Fac Upp Upp War Pro Res Arm Lab Res Tes Acc Com Ac0 Total Allies 279 | . . 2 . 3 . . . 12 2 . . . . 2 . 22 5 . . . . 1 . 2 3 2 4 3 . . 13 . . 1 . 194 8 Largest Group 34 | . . 2 2 4 . . . 10 4 . . . . 2 . 15 13 10 6 . . 1 . 2 2 3 5 4 1 1 10 . . 1 . 34 8 Highest-Rated Group 1392 | . . 41 41 71 . . . 173 104 . . . . 58 . 556 795 588 434 . . 29 . 95 95 103 186 179 49 49 481 . . 14 . 1392 114 Highest-Rated Ally 243 | . . 31 31 31 . . . 31 31 . . . . 29 . 156 156 94 94 . . 29 . 48 48 47 47 49 49 49 58 . . 14 . 243 15 Total Orders 1 | . . . . . . . . . . . . . . . . . . . . . . . . . 1 . . . . . . . . . . . . STAY 1 | . . . . . . . . . . . . . . . . . . . . . . . . . 1 . . . . . . . . . . . . Ally Attacks 1422 | . . 2 34 3 . . . 87 32 . . . . 5 . 115 53 28 86 . . 10 . . 8 . 19 26 7 7 86 . . 1 . 788 25 Total Damage 41203 | . . 40 462 15 . . . 1071 381 . . . . 73 . 1820 1412 1077 2833 . . 191 . . 242 . 661 1191 123 171 2910 . . 32 . 26020 478 Kills 192 | . . 1 8 . . . . 11 4 . . . . . . 19 11 4 20 . . 1 . . 1 . 3 7 2 . 15 . . . . 85 . Allies Corrupted 5 | . . . . . . . . . . . . . . . . . . . . . . . . . . . 1 1 . . 1 . . . . 2 . Allies Melted . | . . . . . . . . . . . . . . . . . . . . . . . . . . . . . . . . . . . . . . Fabricated Assembled 86 | . . . . . . . . . . . . . . . . . . . . . . . . . . . . . . . . . . 1 . 85 . Intel | -11 -10 -10 -9 -9 -9 -8 -8 -8 -7 -7 -7 -7 -7 -6 -6 -6 -6 -6 -6 -5 -5 -5 -5 -4 -4 -4 -4 -4 -3 -3 -3 -3 -2 -2 -1 -1 -1 ------- Run | Scr Mat Min Mat Min Exi Min Mat Sto Fac Low Low Zio Dee Pro Fac Ext Cet Arc Hub Fac Upp Upp Zhi Pro Fac Upp Upp War Pro Res Arm Lab Res Tes Acc Com Ac0 Robot Analysis Total 15 | . . . . . . . 1 . . . . . . . . 2 . . . 2 . . 4 . 2 . . . . 1 2 . . 1 . . . Derelict Logs Recovered 11 | . . 1 . 1 . . . . . 1 1 1 . 1 . . . . . . 1 1 . 1 . 1 1 . . . . . . . . . . Drone Launches . | . . . . . . . . . . . . . . . . . . . . . . . . . . . . . . . . . . . . . . Drone Recoveries . | . . . . . . . . . . . . . . . . . . . . . . . . . . . . . . . . . . . . . . Exploration | -11 -10 -10 -9 -9 -9 -8 -8 -8 -7 -7 -7 -7 -7 -6 -6 -6 -6 -6 -6 -5 -5 -5 -5 -4 -4 -4 -4 -4 -3 -3 -3 -3 -2 -2 -1 -1 -1 ------------- Run | Scr Mat Min Mat Min Exi Min Mat Sto Fac Low Low Zio Dee Pro Fac Ext Cet Arc Hub Fac Upp Upp Zhi Pro Fac Upp Upp War Pro Res Arm Lab Res Tes Acc Com Ac0 Turns Passed 25906 | 44 186 366 449 125 105 470 457 688 1023 694 519 880 672 662 860 871 242 78 421 1563 437 406 86 487 1715 356 572 937 428 472 395 118 1205 542 325 5780 270 Spaces Moved 29581 | 37 117 329 349 111 133 400 351 600 1123 830 708 980 718 844 1188 735 182 42 481 1429 659 526 140 628 1939 618 728 1203 562 528 544 178 1564 712 572 6590 203 Core 1 | 1 . . . . . . . . . . . . . . . . . . . . . . . . . . . . . . . . . . . . . Treads . | . . . . . . . . . . . . . . . . . . . . . . . . . . . . . . . . . . . . . . Legs . | . . . . . . . . . . . . . . . . . . . . . . . . . . . . . . . . . . . . . . Wheels 902 | 36 117 329 349 71 . . . . . . . . . . . . . . . . . . . . . . . . . . . . . . . . . Hover 28678 | . . . . 40 133 400 351 600 1123 830 708 980 718 844 1188 735 182 42 481 1429 659 526 140 628 1939 618 728 1203 562 528 544 178 1564 712 572 6590 203 Flight . | . . . . . . . . . . . . . . . . . . . . . . . . . . . . . . . . . . . . . . Fastest Speed 31 | 50 80 80 80 68 68 68 68 68 68 68 68 68 52 53 53 53 53 53 53 52 53 53 40 43 43 43 43 38 40 36 31 48 48 48 48 45 48 Average Speed 52 | 98 92 80 83 82 68 68 68 68 68 68 68 68 55 53 53 53 53 53 53 52 53 53 48 43 43 43 43 44 40 43 38 48 48 48 48 48 48 Slowest Speed 152 | 100 100 80 90 90 68 68 68 68 68 68 68 68 68 53 53 53 53 53 53 53 53 53 53 43 101 43 43 88 40 95 48 48 48 48 48 152 48 Overloaded Moves 616 | . . . . . . . . . . . . . . . . . . . . . . . . . . . . . . 194 422 . . . . . . Propulsion Burnouts . | . . . . . . . . . . . . . . . . . . . . . . . . . . . . . . . . . . . . . . Robots Hopped 6 | . . . . . . . . . . . . . . . . . . . . . . . . . . . . . . . . . . . . 6 . Cave-ins Triggered . | . . . . . . . . . . . . . . . . . . . . . . . . . . . . . . . . . . . . . . Teleports 1 | . . . . . . . . . . . . . . . . . . . . . . . . . . . . . . . . . . . . 1 . Exploration Rate (%) 63 | 3 37 74 37 26 49 81 33 86 38 89 93 85 78 91 35 86 69 63 59 42 91 75 60 81 59 86 87 83 85 34 63 99 53 71 26 93 16 Regions Visited 37 Branch Regions 27 Pre-discovered Areas 20 | . 1 1 1 . 1 . 1 1 4 . . 1 . . . . . . . . 2 1 3 . . 1 1 . 1 . . . . . . . . Known Exits Taken 10 | . . . 1 . . . 1 . 1 . . . . . 1 . . . . 1 1 . . . 1 . . 1 . 1 . 1 . . . . . Unknown Exits Taken 27 | 1 1 1 . 1 1 1 . 1 . 1 1 1 1 1 . 1 1 1 1 . . 1 1 1 . 1 1 . 1 . 1 . 1 1 1 1 . Scrap Searched 35 | . . 1 . 1 . 1 . . . 3 3 4 . 4 . . . . . . 4 2 . 4 . 4 3 . 1 . . . . . . . . Spaces Dug 331 | . . 10 . . . . 8 7 . 45 . . . . . . . . 18 2 . . . . 52 1 15 1 9 47 45 . 17 16 18 16 4 Terrain Destroyed 3860 | . . 37 22 . . 28 37 37 3 53 4 . 2 14 34 . 13 1 403 459 78 56 . 105 478 51 37 140 145 303 235 2 180 66 45 651 141 Melee . | . . . . . . . . . . . . . . . . . . . . . . . . . . . . . . . . . . . . . . Projectile 2061 | . . . . . . . . 13 3 8 4 . 2 14 2 . 13 1 35 175 78 56 . 56 190 42 37 105 73 179 99 2 134 55 32 512 141 AOE 1799 | . . 37 22 . . 28 37 24 . 45 . . . . 32 . . . 368 284 . . . 49 288 9 . 35 72 124 136 . 46 11 13 139 . Terrain Rammed . | . . . . . . . . . . . . . . . . . . . . . . . . . . . . . . . . . . . . . . Walls Destroyed . | . . . . . . . . . . . . . . . . . . . . . . . . . . . . . . . . . . . . . . Machines Disabled . | . . . . . . . . . . . . . . . . . . . . . . . . . . . . . . . . . . . . . . Actions | -11 -10 -10 -9 -9 -9 -8 -8 -8 -7 -7 -7 -7 -7 -6 -6 -6 -6 -6 -6 -5 -5 -5 -5 -4 -4 -4 -4 -4 -3 -3 -3 -3 -2 -2 -1 -1 -1 --------- Run | Scr Mat Min Mat Min Exi Min Mat Sto Fac Low Low Zio Dee Pro Fac Ext Cet Arc Hub Fac Upp Upp Zhi Pro Fac Upp Upp War Pro Res Arm Lab Res Tes Acc Com Ac0 Total 36895 | 41 156 395 439 133 148 493 459 767 1279 920 732 1101 927 978 1366 1112 306 92 573 1967 701 618 158 800 2543 676 964 1513 721 665 668 203 1914 872 606 8611 278 Wait 2824 | . 4 32 14 10 . 7 14 35 29 19 3 3 49 16 110 195 82 40 24 192 13 30 . 118 219 13 193 99 109 11 47 . 29 59 4 1002 . Move 29532 | 36 116 328 348 110 132 399 350 599 1122 829 707 979 717 843 1187 734 181 41 480 1428 658 525 139 627 1938 617 727 1202 561 527 543 177 1563 711 571 6577 203 Hop 6 | . . . . . . . . . . . . . . . . . . . . . . . . . . . . . . . . . . . . 6 . Pick Up 79 | . 1 4 3 . . 2 1 6 5 5 1 2 3 1 2 1 3 1 . 2 . . 1 . 5 . . . . 1 . . 2 . . 25 2 Fast Attach 385 | 5 . 1 8 5 . 1 8 2 6 1 . 5 12 1 9 . 5 2 . 13 . . 7 3 30 . 4 27 1 5 . 12 80 23 4 101 4 Attach 15 | . . 1 . . . . . . 1 . . . 2 . . . 1 . . 1 . . . . . . . . . 1 . . 2 1 . 5 . Detach 3 | . . . . . . . . . . . . . . . . . . . . 1 . . . . . . . . . . . . . 1 . 1 . Swap 51 | . 3 . 1 . . . 1 1 2 1 . 1 4 . 1 . 2 . . 1 1 . 2 . 4 . . 1 . . 4 . 4 1 1 13 2 Drop 434 | . 4 2 9 3 2 2 8 6 9 6 1 8 16 1 10 1 9 3 . 13 . . 9 2 27 . 4 28 . 5 4 9 85 24 5 116 3 Fire 1836 | . 20 20 37 4 . 53 50 62 69 33 12 71 75 61 33 53 13 3 41 157 25 19 . 25 159 19 13 49 26 64 50 5 68 32 16 344 55 Melee . | . . . . . . . . . . . . . . . . . . . . . . . . . . . . . . . . . . . . . . Ram . | . . . . . . . . . . . . . . . . . . . . . . . . . . . . . . . . . . . . . . Kick . | . . . . . . . . . . . . . . . . . . . . . . . . . . . . . . . . . . . . . . Crush . | . . . . . . . . . . . . . . . . . . . . . . . . . . . . . . . . . . . . . . Escape Stasis 42 | . . . . . . . . . . . . . . . . . . . . . . . . . . . . . . . . . . . . 42 . Rewire 174 | . . . . . . . . . 2 . . . . 14 . 87 . . . . . 19 . 5 . 8 15 16 . . 7 . 1 . . . . Trap 2 | . . . . . . . . . . . . . . . . . . . . . . 2 . . . . . . . . . . . . . . . Miscellaneous 1512 | . 8 7 19 1 14 29 27 56 34 26 8 32 49 41 14 41 10 2 28 159 4 23 . 20 161 19 8 91 24 51 13 . 80 20 5 379 9 Route ------- -11/Scrapyard -10/Materials -10/Mines -9/Materials (discovered 2 exits: *Min x2) -9/Mines (discovered 2 exits: *Mat / *Exi) -9/Exiles -8/Mines (discovered 2 exits: *Mat x2) -8/Materials (discovered 3 exits: Fac / *Sto x2) -8/Storage -7/Factory (discovered 2 exits: *Low x2) -7/Lower Caves -7/Lower Caves (discovered 2 exits: Fac / *Zio) -7/Zion -7/Deep Caves -6/Proximity Caves -6/Factory (discovered 4 exits: *Low x2 / *Ext x2) -6/Extension (discovered 2 exits: *Fac / *Cet) -6/Cetus (discovered 2 exits: *Fac / [*Arc]) -6/Archives -6/Hub_04(d) (discovered 3 exits: *Fac x3) -5/Factory (discovered 4 exits: *Fac x2 / *Upp x2) -5/Upper Caves -5/Upper Caves (discovered 2 exits: *Fac / *Zhi) -5/Zhirov -4/Proximity Caves -4/Factory (discovered 5 exits: *Res x3 / *Upp x2) -4/Upper Caves -4/Upper Caves (discovered 2 exits: Res / *War) -4/Warlord -3/Proximity Caves -3/Research (discovered 4 exits: Res x2 / *Arm / *Qua) -3/Armory (discovered 3 exits: *Res x2 / *Lab) -3/Lab -2/Research (discovered 4 exits: *Acc x2 / *Tes x2) -2/Testing -1/Access (discovered 2 exits: [Sur] / *Com) -1/Command (discovered 3 exits: [*Sur x2] / [*Ac0]) -1/Access_0 History --------- Turn | Location | Event 1 | -11/Scrapyard | Upgraded with Propulsion slot (x1) 1 | -11/Scrapyard | Upgraded with Weapon slot (x1) 18 | -11/Scrapyard | Discovered new exit (range 16) 45 | -11/Scrapyard | Entered Materials 95 | -10/Materials | Discovered new exit (range 12) 183 | -10/Materials | Destroyed 7 combat bots 231 | -10/Materials | Entered Mines 269 | -10/Mines | Received a Rocket Launcher from a helpful Derelict 294 | -10/Mines | Reached level 2 304 | -10/Mines | Build established: Mutant 375 | -10/Mines | Upgraded with Weapon slot (x1) 392 | -10/Mines | Learned Materials terminal intel 407 | -10/Mines | Learned location of Storage (-8) 545 | -10/Mines | Found a damaged Exp. Sensor Array with a note attached 567 | -10/Mines | Discovered new exit (range 10) 597 | -10/Mines | Entered Materials 597 | -9/Materials | Accompanied by 2 allies 598 | -9/Materials | Loaded intel: 12 terminal locations 599 | -9/Materials | Reached level 3 602 | -9/Materials | Led the pair of lost Derelicts to an unsafe place 628 | -9/Materials | Reached level 4 731 | -9/Materials | Upgraded with Weapon slot (x1) 769 | -9/Materials | Identified exit to Mines 870 | -9/Materials | Reached level 5 997 | -9/Materials | First assault squad dispatched 1046 | -9/Materials | Entered Mines 1046 | -9/Mines | Accompanied by 1 ally 1046 | -9/Mines | Discovered new exit (range 6) 1048 | -9/Mines | Reached level 6 1051 | -9/Mines | Assisted by bots powering up and referring to "LRC-V3" 1065 | -9/Mines | Learned Materials emergency access door positions 1076 | -9/Mines | A weapon hastily lodged in a ceiling crevice suddenly fell to the ground 1090 | -9/Mines | Assembled infested the area 1123 | -9/Mines | Met 8R-AWN 1123 | -9/Mines | Upgraded with Propulsion slot (x1) 1137 | -9/Mines | Upgraded with Propulsion slot (x1) 1165 | -9/Mines | Discovered new exit (range 5) 1171 | -9/Mines | Entered Exiles 1189 | -9/Exiles | Welcomed by 8R-AWN 1200 | -9/Exiles | Met EX-HEX 1244 | -9/Exiles | Met EX-DEC 1248 | -9/Exiles | Learned location of Zion (-7) 1267 | -9/Exiles | Discovered new exit (range 14) 1276 | -9/Exiles | Entered Mines 1279 | -8/Mines | Discovered new exit (range 9) 1336 | -8/Mines | Reached level 7 1472 | -8/Mines | Discovered new exit (range 13) 1597 | -8/Mines | Build established: Scavenger-Mutant 1746 | -8/Mines | Entered Materials 1748 | -8/Materials | Reached level 8 1783 | -8/Materials | Upgraded with Utility slot (x1) 1847 | -8/Materials | Reached level 9 1951 | -8/Materials | Core integrity fell below 50% 1991 | -8/Materials | Upgraded with Weapon slot (x1) 2014 | -8/Materials | Identified exit to Storage 2080 | -8/Materials | Reached level 10 2127 | -8/Materials | Central database locked down 2143 | -8/Materials | Discovered new exit (range 20) 2156 | -8/Materials | Upgraded with Utility slot (x1) 2203 | -8/Materials | Entered Storage 2205 | -8/Storage | Reached level 11 2370 | -8/Storage | Assisted by bots powering up and referring to "LRC-V3" 2381 | -8/Storage | Garrison activated, responded to threat 2423 | -8/Storage | Reached level 12 2603 | -8/Storage | First assault squad dispatched 2661 | -8/Storage | Build established: Commander-Scout 2746 | -8/Storage | Met a pair of Derelict thieves 2776 | -8/Storage | Reached level 13 2805 | -8/Storage | Destroyed 8 combat bots 2832 | -8/Storage | Discovered new exit (range 17) 2844 | -8/Storage | Upgraded with Utility slot (x1) 2867 | -8/Storage | Found Prototype Launcher 2867 | -8/Storage | Identified Scatter Rocket Array 2891 | -8/Storage | Entered Factory 2891 | -7/Factory | Accompanied by 2 allies 2893 | -7/Factory | Reached level 14 2903 | -7/Factory | Upgraded with Utility slot (x1) 2926 | -7/Factory | Discovered new exit (range 20) 2967 | -7/Factory | Build established: Scavenger-Scout 3106 | -7/Factory | Upgraded with Power slot (x1) 3205 | -7/Factory | Reached level 15 3253 | -7/Factory | Discovered new exit (range 13) 3263 | -7/Factory | Upgraded with Utility slot (x1) 3777 | -7/Factory | Identified exit to Lower Caves 3914 | -7/Factory | Entered Lower Caves 3916 | -7/Lower Caves | Reached level 16 3978 | -7/Lower Caves | Learned location of 1 exit from Factory 4011 | -7/Lower Caves | Attracted the attention of an 0b10 checkpoint 4106 | -7/Lower Caves | Attracted the attention of an 0b10 base 4175 | -7/Lower Caves | Learned 6 Upper Caves zone layouts 4293 | -7/Lower Caves | Encountered a Warlord checkpoint 4524 | -7/Lower Caves | Discovered new exit (range 20) 4608 | -7/Lower Caves | Entered another Lower Caves area 4610 | -7/Lower Caves | Attracted the attention of an 0b10 checkpoint 4636 | -7/Lower Caves | Discovered new exit (range 10) 4773 | -7/Lower Caves | Learned location of 1 exit from Factory 4911 | -7/Lower Caves | Discovered new exit (range 17) 5080 | -7/Lower Caves | Encountered a Warlord checkpoint 5127 | -7/Lower Caves | Entered Zion 5206 | -7/Zion | System corruption cleaned by Quarantine Array 5321 | -7/Zion | Given A8's code to call for help 5510 | -7/Zion | Given the Hacking Drone Bay 5637 | -7/Zion | Attacked by Zionites 5832 | -7/Zion | Destroyed Imprinter 5838 | -7/Zion | Extracted access codes from Imprinter's data core 5848 | -7/Zion | NK-0LA came to Zion's defense 5894 | -7/Zion | Core integrity fell below 50% 5899 | -7/Zion | Destroyed NK-0LA 5916 | -7/Zion | Found Prototype Device 5916 | -7/Zion | Identified Thermal Barrier 5995 | -7/Zion | Opened final containment barrier to the Deep Caves 6004 | -7/Zion | Discovered new exit (range 5) 6005 | -7/Zion | Saw the warning signs outside the Deep Caves entrance 6007 | -7/Zion | Entered Deep Caves 6009 | -7/Deep Caves | Reached level 17 6080 | -7/Deep Caves | Z-Facility disabled 6118 | -7/Deep Caves | Found Prototype Protection 6118 | -7/Deep Caves | Identified Zio. Weapon Casing 6255 | -7/Deep Caves | Discovered new exit (range 6) 6325 | -7/Deep Caves | Spotted as-33243 6378 | -7/Deep Caves | Destroyed as-33243 6444 | -7/Deep Caves | Triggered Deep Caves wall 6444 | -7/Deep Caves | Spotted AS-13884 6444 | -7/Deep Caves | Spotted AS-11301 6452 | -7/Deep Caves | Destroyed AS-13884 6458 | -7/Deep Caves | Destroyed AS-11301 6481 | -7/Deep Caves | Destroyed 36 combat bots 6509 | -7/Deep Caves | Spotted as-42456 6520 | -7/Deep Caves | Exposed GOLEM chamber 6544 | -7/Deep Caves | Destroyed as-42456 6587 | -7/Deep Caves | Found Mobile Assembly Unit 6599 | -7/Deep Caves | Found Prototype Energy Cannon 6599 | -7/Deep Caves | Identified YOLO Cannon 6679 | -7/Deep Caves | Entered Proximity Caves 6704 | -6/Proximity Caves | Attracted the attention of an 0b10 checkpoint 6883 | -6/Proximity Caves | Build established: Scavenger-Tank 6935 | -6/Proximity Caves | Reached level 18 6953 | -6/Proximity Caves | Attracted the attention of an 0b10 outpost 6998 | -6/Proximity Caves | Destroyed 7 combat bots 7185 | -6/Proximity Caves | Discovered new exit (range 14) 7281 | -6/Proximity Caves | Spotted B-75 Beast 7324 | -6/Proximity Caves | Destroyed B-75 Beast 7341 | -6/Proximity Caves | Entered Factory 7342 | -6/Factory | Identified exit to Lower Caves 7342 | -6/Factory | Identified exit to Extension 7343 | -6/Factory | Reached level 19 7357 | -6/Factory | Upgraded with Utility slot (x1) 7425 | -6/Factory | Spotted B-75 Beast 7508 | -6/Factory | Destroyed 8 combat bots 7641 | -6/Factory | Found Prototype Processor 7641 | -6/Factory | Identified Exp. Targeting Computer 7711 | -6/Factory | Fabricated Hyp. Gauss Rifle (x2) 7762 | -6/Factory | Fabricated Hyp. Gauss Rifle (x2) 7929 | -6/Factory | Build established: Scavenger-Gunner 8071 | -6/Factory | Fabricated Imp. Target Analyzer? 8201 | -6/Factory | Entered Extension 8279 | -6/Extension | Rescued a captive Derelict 8305 | -6/Extension | Rescued a captive Derelict 8305 | -6/Extension | Rescued a captive Derelict 8315 | -6/Extension | Rescued a captive Derelict 8317 | -6/Extension | Rescued a captive Derelict 8322 | -6/Extension | Reached level 20 8465 | -6/Extension | Rescued a captive Derelict 8701 | -6/Extension | Disrupted transfer network 8726 | -6/Extension | Spotted B-75 Beast 8746 | -6/Extension | Allies destroyed B-75 Beast 8746 | -6/Extension | Spotted B-75 Beast 8761 | -6/Extension | Allies destroyed B-75 Beast 8796 | -6/Extension | Rescued A7 8832 | -6/Extension | Rescued a captive Derelict 8852 | -6/Extension | Rescued a captive Derelict 8853 | -6/Extension | Rescued a captive Derelict 8932 | -6/Extension | Discovered new exit (range 10) 8940 | -6/Extension | Discovered new exit (range 6) 9072 | -6/Extension | Entered Cetus 9072 | -6/Cetus | Accompanied by 13 allies (A7) 9077 | -6/Cetus | Acquired a Cetus Manufacturing Module code from A7 9081 | -6/Cetus | Spotted Cetus Guard 9081 | -6/Cetus | Spotted Cetus Guard 9088 | -6/Cetus | Spotted Cetus Guard 9093 | -6/Cetus | Spotted Cetus Guard 9094 | -6/Cetus | Allies destroyed Cetus Guard 9097 | -6/Cetus | Destroyed Cetus Guard 9097 | -6/Cetus | Reached level 21 9097 | -6/Cetus | Destroyed Cetus Guard 9100 | -6/Cetus | Destroyed Cetus Guard 9116 | -6/Cetus | Upgraded with Utility slot (x1) 9138 | -6/Cetus | Started Cetus Manufacturing Module 9143 | -6/Cetus | Escorted A7 to Cetus Mainframe 9163 | -6/Cetus | Manufactured an Enhanced Grunt 9165 | -6/Cetus | Discovered new exit (range 18) 9188 | -6/Cetus | Manufactured an Enhanced Grunt 9193 | -6/Cetus | Spotted Cetus Guard 9193 | -6/Cetus | Spotted Cetus Guard 9195 | -6/Cetus | Allies destroyed Cetus Guard 9196 | -6/Cetus | Spotted Cetus Guard 9197 | -6/Cetus | Allies destroyed Cetus Guard 9197 | -6/Cetus | Spotted Cetus Guard 9207 | -6/Cetus | Allies destroyed Cetus Guard 9208 | -6/Cetus | Allies destroyed Cetus Guard 9209 | -6/Cetus | Discovered new exit (range 18) 9213 | -6/Cetus | Manufactured an Enhanced Grunt 9214 | -6/Cetus | Met Revision 17 9238 | -6/Cetus | Manufactured an Enhanced Grunt 9263 | -6/Cetus | Manufactured an Enhanced Grunt 9280 | -6/Cetus | Destroyed A7 9283 | -6/Cetus | Extracted ID and sensor layout for unrecognized location from A7's data core 9286 | -6/Cetus | Found Prototype Protection 9286 | -6/Cetus | Identified Med. Regenerative Plating 9314 | -6/Cetus | Entered Archives 9314 | -6/Archives | Accompanied by 10 allies 9345 | -6/Archives | Found Prototype Device 9345 | -6/Archives | Identified Exp. Thermal Shield 9357 | -6/Archives | Discovered new exit (range 17) 9392 | -6/Archives | Entered Hub_04(d) 9392 | -6/Hub_04(d) | Accompanied by 6 allies 9430 | -6/Hub_04(d) | Spotted B-75 Beast 9588 | -6/Hub_04(d) | Reached level 22 9668 | -6/Hub_04(d) | Discovered new exit (range 2) 9683 | -6/Hub_04(d) | Discovered new exit (range 10) 9737 | -6/Hub_04(d) | Discovered new exit (range 18) 9742 | -6/Hub_04(d) | First assault squad dispatched 9748 | -6/Hub_04(d) | Garrison activated, responded to threat 9763 | -6/Hub_04(d) | High security lockdown imminent 9789 | -6/Hub_04(d) | Network Hub disabled 9789 | -6/Hub_04(d) | Spotted Lightning 9789 | -6/Hub_04(d) | Spotted Lightning 9789 | -6/Hub_04(d) | Spotted Lightning 9789 | -6/Hub_04(d) | Spotted Lightning 9789 | -6/Hub_04(d) | Spotted Lightning 9789 | -6/Hub_04(d) | Spotted Lightning 9789 | -6/Hub_04(d) | Spotted Lightning 9789 | -6/Hub_04(d) | Spotted Lightning 9789 | -6/Hub_04(d) | Spotted Lightning 9789 | -6/Hub_04(d) | Spotted Lightning 9789 | -6/Hub_04(d) | Spotted Lightning 9789 | -6/Hub_04(d) | Spotted Lightning 9811 | -6/Hub_04(d) | Network Hub disabled 9813 | -6/Hub_04(d) | Entered Factory 9814 | -5/Factory | Identified exit to Upper Caves 9991 | -5/Factory | Reached level 23 10055 | -5/Factory | Fabricated Enh. Coil Gun? 10074 | -5/Factory | Discovered new exit (range 18) 10113 | -5/Factory | First assault squad dispatched 10127 | -5/Factory | Spotted B-75 Beast 10241 | -5/Factory | Destroyed 9 combat bots 10352 | -5/Factory | Fabricated Imp. Kinecellerator? 10379 | -5/Factory | Destroyed 8 combat bots 10428 | -5/Factory | Upgraded with Utility slot (x1) 10497 | -5/Factory | Found Prototype Device 10497 | -5/Factory | Identified Exp. Terrain Scanner 10499 | -5/Factory | High security lockdown imminent 10516 | -5/Factory | Reached level 24 10537 | -5/Factory | Destroyed 9 combat bots 10579 | -5/Factory | High security lockdown engaged 10670 | -5/Factory | Destroyed 15 combat bots 10783 | -5/Factory | Destroyed 14 combat bots 10798 | -5/Factory | Build established: Scavenger-Scout 10834 | -5/Factory | Destroyed 11 combat bots 10931 | -5/Factory | Destroyed 8 combat bots 11023 | -5/Factory | Destroyed 18 combat bots 11098 | -5/Factory | Reached level 25 11134 | -5/Factory | Destroyed 10 combat bots 11159 | -5/Factory | Sterilization system engaged 11159 | -5/Factory | Non-combat units ordered to evacuate 11215 | -5/Factory | Destroyed 25 combat bots 11259 | -5/Factory | Combat units ordered to evacuate 11261 | -5/Factory | Discovered new exit (range 25) 11376 | -5/Factory | Entered Upper Caves 11377 | -5/Upper Caves | Identified exit to Upper Caves 11676 | -5/Upper Caves | Attracted the attention of an 0b10 base 11711 | -5/Upper Caves | Learned Extension garrison access intel 11813 | -5/Upper Caves | Entered another Upper Caves area 11844 | -5/Upper Caves | Discovered new exit (range 9) 11929 | -5/Upper Caves | Attracted the attention of an 0b10 outpost 11979 | -5/Upper Caves | Spotted B-75 Beast 11986 | -5/Upper Caves | Destroyed B-75 Beast 11997 | -5/Upper Caves | Learned location of Warlord (-4) 12080 | -5/Upper Caves | Discovered new exit (range 12) 12133 | -5/Upper Caves | Attracted the attention of an 0b10 checkpoint 12219 | -5/Upper Caves | Entered Zhirov 12219 | -5/Zhirov | Discovered new exit (range 3) 12229 | -5/Zhirov | Met Zhirov 12244 | -5/Zhirov | Zhirov requested help retrieving the SGEMP Prototype 12252 | -5/Zhirov | Found Alien Artifact 12252 | -5/Zhirov | Identified Integrated Reactor 12252 | -5/Zhirov | Installed Integrated Reactor, increased core energy generation (+10) 12288 | -5/Zhirov | Found Alien Artifact 12305 | -5/Zhirov | Entered Proximity Caves 12433 | -4/Proximity Caves | Received a Behemoth hack from an annoying Tinkerer 12448 | -4/Proximity Caves | Learned 8 Research zone layouts 12471 | -4/Proximity Caves | Attracted the attention of an 0b10 outpost 12472 | -4/Proximity Caves | Reached level 26 12495 | -4/Proximity Caves | Spotted B-86 Titan 12505 | -4/Proximity Caves | Destroyed 9 combat bots 12524 | -4/Proximity Caves | Destroyed B-86 Titan 12636 | -4/Proximity Caves | Upgraded with Utility slot (x1) 12711 | -4/Proximity Caves | Discovered new exit (range 13) 12792 | -4/Proximity Caves | Entered Factory 12792 | -4/Factory | Accompanied by 2 allies 12911 | -4/Factory | Fabricated Prc. Matter Filter (x1) 12985 | -4/Factory | Fabricated Tiamat Missile Launcher (x1) 13011 | -4/Factory | Identified exit to Upper Caves 13057 | -4/Factory | Spotted B-86 Titan 13089 | -4/Factory | Discovered new exit (range 28) 13099 | -4/Factory | Local fabrication network quarantined 13246 | -4/Factory | Discovered new exit (range 28) 13278 | -4/Factory | Garrison activated, responded to threat 13281 | -4/Factory | Reached level 27 13292 | -4/Factory | First assault squad dispatched 13313 | -4/Factory | Destroyed 8 combat bots 13718 | -4/Factory | Found Prototype Device 13718 | -4/Factory | Identified EM Disruption Field 13727 | -4/Factory | Discovered new exit (range 13) 13863 | -4/Factory | Garrison activated, responded to threat 13902 | -4/Factory | Destroyed 7 combat bots 13929 | -4/Factory | High security lockdown imminent 14009 | -4/Factory | High security lockdown engaged 14203 | -4/Factory | Reached level 28 14324 | -4/Factory | Destroyed 30 combat bots 14393 | -4/Factory | Destroyed 8 combat bots 14405 | -4/Factory | System corruption reached 10% 14470 | -4/Factory | Destroyed 18 combat bots 14507 | -4/Factory | Entered Upper Caves 14507 | -4/Upper Caves | Accompanied by 1 ally 14513 | -4/Upper Caves | Encountered a Warlord checkpoint 14632 | -4/Upper Caves | Attracted the attention of an 0b10 outpost 14676 | -4/Upper Caves | Destroyed 7 combat bots 14754 | -4/Upper Caves | Learned location of 1 exit from Research 14786 | -4/Upper Caves | Learned Armory trap positions 14786 | -4/Upper Caves | Learned Factory security intel 14796 | -4/Upper Caves | Discovered new exit (range 17) 14799 | -4/Upper Caves | Destroyed 8 combat bots 14863 | -4/Upper Caves | Entered another Upper Caves area 14863 | -4/Upper Caves | Accompanied by 3 allies 14874 | -4/Upper Caves | Spotted B-86 Titan 14894 | -4/Upper Caves | Destroyed B-86 Titan 14906 | -4/Upper Caves | Discovered new exit (range 19) 15065 | -4/Upper Caves | Central database locked down 15142 | -4/Upper Caves | Discovered new exit (range 16) 15435 | -4/Upper Caves | Entered Warlord 15435 | -4/Warlord | Accompanied by 2 allies 15436 | -4/Warlord | Identified exit to Proximity Caves 15450 | -4/Warlord | System corruption cleaned by Quarantine Array 15673 | -4/Warlord | Warlord's base attacked by MAIN.C 15690 | -4/Warlord | Met Warlord 15733 | -4/Warlord | Found Prototype Energy Cannon 15733 | -4/Warlord | Identified Vortex Cannon 15786 | -4/Warlord | Found Prototype Device 15786 | -4/Warlord | Identified System Purifier 15790 | -4/Warlord | Found Prototype Reactor 15790 | -4/Warlord | Identified Vortex Chain Reactor 15796 | -4/Warlord | Found Prototype Processor 15796 | -4/Warlord | Identified Exp. Core Analyzer 15942 | -4/Warlord | Found Prototype Ballistic Cannon 15942 | -4/Warlord | Identified Hvy. Autocannon 15983 | -4/Warlord | Warlord forces counterattacked 16001 | -4/Warlord | Spotted Striker 16019 | -4/Warlord | Destroyed Striker 16019 | -4/Warlord | Spotted Executioner 16021 | -4/Warlord | Reached level 29 16021 | -4/Warlord | Destroyed Executioner 16054 | -4/Warlord | Destroyed 20 combat bots 16054 | -4/Warlord | Found Prototype Device 16054 | -4/Warlord | Identified Adv. Kinecellerator 16077 | -4/Warlord | Spotted Executioner 16077 | -4/Warlord | Spotted Executioner 16173 | -4/Warlord | Spotted Executioner 16173 | -4/Warlord | Destroyed Executioner 16225 | -4/Warlord | Destroyed 7 combat bots 16273 | -4/Warlord | Spotted Executioner 16277 | -4/Warlord | Spotted Striker 16279 | -4/Warlord | P-70 Sage assimilated allied 6U-3KY(g) 16280 | -4/Warlord | Destroyed Executioner 16294 | -4/Warlord | P-80 Master assimilated allied Sentinel 7b 16295 | -4/Warlord | Destroyed Striker 16318 | -4/Warlord | Destroyed 12 combat bots 16372 | -4/Warlord | Entered Proximity Caves 16372 | -3/Proximity Caves | Accompanied by 1 ally 16424 | -3/Proximity Caves | Learned Factory garrison access intel 16424 | -3/Proximity Caves | Learned Extension stockpile data 16424 | -3/Proximity Caves | Learned Research stockpile data 16424 | -3/Proximity Caves | Learned Extension trap positions 16424 | -3/Proximity Caves | Learned 6 Lower Caves zone layouts 16424 | -3/Proximity Caves | Learned location of 1 exit from Research 16516 | -3/Proximity Caves | Spotted B-86 Titan 16527 | -3/Proximity Caves | Destroyed B-86 Titan 16673 | -3/Proximity Caves | Discovered new exit (range 9) 16800 | -3/Proximity Caves | Entered Research 16800 | -3/Research | Accompanied by 1 ally 16801 | -3/Research | Identified exit to Research 16802 | -3/Research | Identified exit to Quarantine 16802 | -3/Research | Identified exit to Armory 16802 | -3/Research | Reached level 30 16851 | -3/Research | Garrison activated, responded to threat 16869 | -3/Research | Upgraded with Utility slot (x1) 16882 | -3/Research | Destroyed 10 combat bots 16946 | -3/Research | Found Antimissile System 17009 | -3/Research | Found Prototype Device 17009 | -3/Research | Identified Exp. Shield Generator 17014 | -3/Research | Found Exp. Shield Generator 17029 | -3/Research | Spotted B-86 Titan 17050 | -3/Research | First assault squad dispatched 17196 | -3/Research | Destroyed 10 combat bots 17272 | -3/Research | Entered Armory 17273 | -3/Armory | Loaded intel: 37 trap records 17292 | -3/Armory | Energy Cycler disabled 17372 | -3/Armory | Discovered exit to Research (range 10) 17382 | -3/Armory | Reached level 31 17479 | -3/Armory | Destroyed 10 combat bots 17505 | -3/Armory | Assisted by bots powering up and referring to "LRC-V3" 17547 | -3/Armory | First assault squad dispatched 17577 | -3/Armory | Discovered exit to Research (range 15) 17589 | -3/Armory | Destroyed 10 combat bots 17590 | -3/Armory | Discovered new exit (range 22) 17664 | -3/Armory | High security lockdown imminent 17667 | -3/Armory | Entered Lab 17667 | -3/Lab | Discovered exit to Research (range 9) 17673 | -3/Lab | Hidden lab's door opened automatically 17673 | -3/Lab | Sensor layout match revealed 17674 | -3/Lab | Gained access to the hidden lab's interior 17674 | -3/Lab | Unable to decrypt terminal 17675 | -3/Lab | Unable to decrypt terminal 17679 | -3/Lab | Found Alien Artifact 17679 | -3/Lab | Identified Core Reset Matrix 17679 | -3/Lab | Identified Transdimensional Reconstructor 17679 | -3/Lab | Used Core Reset Matrix 17683 | -3/Lab | Sensed 3 artifacts in vicinity 17686 | -3/Lab | Discovered exit to Research (range 7) 17709 | -3/Lab | Unable to decrypt terminal 17716 | -3/Lab | Found Prototype Energy Cannon 17716 | -3/Lab | Identified Potential Cannon 17725 | -3/Lab | Found Prototype Protection 17725 | -3/Lab | Identified Hvy. Regenerative Plating 17745 | -3/Lab | Found Integrated Dissipator 17745 | -3/Lab | Installed Integrated Dissipator, increased core heat dissipation (+20) 17750 | -3/Lab | Found Core Regenerator 17750 | -3/Lab | Used Core Regenerator, restored core integrity (+248) 17785 | -3/Lab | Entered Research 17785 | -2/Research | Warlord forces began assault on 0b10 17787 | -2/Research | Reached level 32 17810 | -2/Research | Found Prototype Device 17810 | -2/Research | Identified Exp. Thermal Shield 17812 | -2/Research | Found Prototype Device 17812 | -2/Research | Identified Adv. Kinecellerator 17817 | -2/Research | Spotted B-90 Cyclops 17874 | -2/Research | Destroyed 9 combat bots 17875 | -2/Research | Met up with Warlord 17895 | -2/Research | Research machine network offline 17897 | -2/Research | Discovered new exit (range 22) 17955 | -2/Research | Discovered new exit (range 30) 17969 | -2/Research | Found Prototype Processor 17972 | -2/Research | Identified Exp. Melee Analysis Suite 18041 | -2/Research | Found Prototype Launcher 18041 | -2/Research | Identified Tesla Bomb Launcher 18073 | -2/Research | Spotted Executioner 18075 | -2/Research | Spotted Striker 18082 | -2/Research | Destroyed Striker 18100 | -2/Research | Destroyed Executioner 18120 | -2/Research | Found Unknown Launcher 18120 | -2/Research | Identified Gamma Bomb Array 18127 | -2/Research | Destroyed 7 combat bots 18232 | -2/Research | Discovered new exit (range 13) 18284 | -2/Research | Found Unknown Launcher 18284 | -2/Research | Identified Fusion Bomb Launcher 18316 | -2/Research | Borebot progress halted 18332 | -2/Research | Reached level 33 18365 | -2/Research | Destroyed 8 combat bots 18396 | -2/Research | Spotted Executioner 18398 | -2/Research | Spotted Striker 18398 | -2/Research | Destroyed Executioner 18438 | -2/Research | Borebot progress halted 18567 | -2/Research | Upgraded with Utility slot (x1) 18573 | -2/Research | Found Unknown Device 18573 | -2/Research | Identified Quantum Capacitor 18732 | -2/Research | Discovered new exit (range 27) 18739 | -2/Research | Spotted B-90 Cyclops 18775 | -2/Research | Spotted Executioner 18776 | -2/Research | Destroyed Executioner 18778 | -2/Research | Spotted Striker 18781 | -2/Research | Borebot progress halted 18782 | -2/Research | Destroyed Striker 18791 | -2/Research | Found Prototype Launcher 18791 | -2/Research | Identified Gui. Micro-nuke Launcher 18802 | -2/Research | Warlord invited to help at Command 18828 | -2/Research | Spotted Striker 18832 | -2/Research | Spotted Striker 18837 | -2/Research | Spotted Striker 18838 | -2/Research | Destroyed Striker 18838 | -2/Research | Spotted Striker 18844 | -2/Research | Destroyed Striker 18858 | -2/Research | Destroyed Striker 18868 | -2/Research | Spotted Executioner 18876 | -2/Research | Spotted Executioner 18878 | -2/Research | Spotted Striker 18889 | -2/Research | Destroyed Striker 18889 | -2/Research | Destroyed Striker 18892 | -2/Research | Spotted Executioner 18902 | -2/Research | Destroyed Executioner 18920 | -2/Research | Destroyed Executioner 18926 | -2/Research | Destroyed Executioner 18958 | -2/Research | Destroyed 9 combat bots 18990 | -2/Research | Entered Testing 19107 | -2/Testing | Protovariant out of control (PY-O0N2PEMD72) 19107 | -2/Testing | Unleashed a protovariant (PY-O0N2PEMD72) 19117 | -2/Testing | Protovariant out of control (PY-NBG1HFK4BI) 19117 | -2/Testing | Unleashed a protovariant (PY-NBG1HFK4BI) 19135 | -2/Testing | Discovered new exit (range 28) 19150 | -2/Testing | Garrison activated, responded to threat 19154 | -2/Testing | Spotted Investigator 19199 | -2/Testing | Spotted PY-O0N2PEMD72 19289 | -2/Testing | First assault squad dispatched 19323 | -2/Testing | Found Prototype Launcher 19323 | -2/Testing | Identified Containment Facilitator 19449 | -2/Testing | Found Prototype Launcher 19449 | -2/Testing | Identified Z-bomb Delivery System 19473 | -2/Testing | Unstable Terrabomb Derivative detonated 19532 | -2/Testing | Entered Access 19534 | -1/Access | Reached level 34 19705 | -1/Access | Discovered new exit (range 19) 19803 | -1/Access | Discovered new exit (range 21) 19857 | -1/Access | Entered Command 19859 | -1/Command | Reached level 35 19859 | -1/Command | Upgraded with Utility slot (x1) 20008 | -1/Command | Disengaged cave seal 20008 | -1/Command | Assembled emerged from the dark tunnel 20228 | -1/Command | Reached level 36 20312 | -1/Command | Spotted B-99 Colossus 20338 | -1/Command | Destroyed B-99 Colossus 20390 | -1/Command | First assault squad dispatched 20397 | -1/Command | Spotted Alpha 7 20423 | -1/Command | Destroyed 18 combat bots 20434 | -1/Command | Spotted Striker 20447 | -1/Command | Spotted Alpha 7 20447 | -1/Command | Destroyed Striker 20472 | -1/Command | Destroyed Alpha 7 20497 | -1/Command | Destroyed Alpha 7 20501 | -1/Command | Spotted Executioner 20504 | -1/Command | Destroyed Executioner 20523 | -1/Command | Disengaged cave seal 20523 | -1/Command | Assembled emerged from the dark tunnel 20525 | -1/Command | Destroyed 8 combat bots 20544 | -1/Command | Spotted Executioner 20544 | -1/Command | Spotted B-99 Colossus 20544 | -1/Command | Spotted Executioner 20544 | -1/Command | Spotted B-99 Colossus 20545 | -1/Command | Destroyed Executioner 20693 | -1/Command | Build established: Scavenger-Gunner 20832 | -1/Command | Spotted B-99 Colossus 20860 | -1/Command | Destroyed B-99 Colossus 20954 | -1/Command | Reached level 37 21011 | -1/Command | High security lockdown imminent 21057 | -1/Command | Discovered new exit (range 8) 21059 | -1/Command | Found Prototype Ballistic Gun 21059 | -1/Command | Identified Multirail 21091 | -1/Command | High security lockdown engaged 21162 | -1/Command | Spotted Striker 21162 | -1/Command | Spotted Executioner 21166 | -1/Command | Destroyed Striker 21169 | -1/Command | Destroyed Executioner 21218 | -1/Command | Destroyed 15 combat bots 21241 | -1/Command | Spotted Striker 21241 | -1/Command | Spotted Striker 21242 | -1/Command | Spotted Investigator 21245 | -1/Command | Scanned by Researcher 21245 | -1/Command | Destroyed Investigator 21245 | -1/Command | Destroyed Striker 21245 | -1/Command | Destroyed Striker 21283 | -1/Command | Destroyed 16 combat bots 21362 | -1/Command | Found Multirail 21367 | -1/Command | Found Adv. Kinecellerator 21388 | -1/Command | Spotted Executioner 21389 | -1/Command | Spotted Executioner 21392 | -1/Command | Spotted Executioner 21397 | -1/Command | Allies destroyed Executioner 21399 | -1/Command | Destroyed Executioner 21404 | -1/Command | Spotted Executioner 21405 | -1/Command | Destroyed Executioner 21405 | -1/Command | Destroyed Executioner 21437 | -1/Command | Destroyed 23 combat bots 21592 | -1/Command | Spotted Executioner 21592 | -1/Command | Spotted Striker 21592 | -1/Command | Spotted Striker 21592 | -1/Command | Spotted Striker 21593 | -1/Command | Spotted Executioner 21596 | -1/Command | Destroyed Executioner 21618 | -1/Command | Core integrity fell below 50% 21620 | -1/Command | Destroyed Striker 21624 | -1/Command | Destroyed Striker 21626 | -1/Command | Reached level 38 21626 | -1/Command | Destroyed Executioner 21629 | -1/Command | Destroyed Striker 21631 | -1/Command | Emitted hypermatrix ping 21636 | -1/Command | Assembled emerged from beneath the floor 21648 | -1/Command | Core integrity fell below 20% 21682 | -1/Command | Assembled emerged from beneath the floor 21692 | -1/Command | Destroyed 24 combat bots 21710 | -1/Command | Spotted Executioner 21715 | -1/Command | Destroyed Executioner 21798 | -1/Command | Assembled emerged from beneath the floor 21831 | -1/Command | Assembled emerged from beneath the floor 21846 | -1/Command | Found Antimissile System 21876 | -1/Command | Spotted Striker 21876 | -1/Command | Spotted Executioner 21876 | -1/Command | Spotted Striker 21877 | -1/Command | Destroyed Executioner 21877 | -1/Command | Spotted Striker 21877 | -1/Command | Spotted Executioner 21878 | -1/Command | Spotted Executioner 21878 | -1/Command | Spotted Executioner 21878 | -1/Command | Spotted Executioner 21879 | -1/Command | Destroyed Executioner 21879 | -1/Command | Destroyed Striker 21884 | -1/Command | Spotted Investigator 21885 | -1/Command | Allies destroyed Striker 21888 | -1/Command | Allies destroyed Striker 21892 | -1/Command | Destroyed Executioner 21892 | -1/Command | Destroyed Executioner 21898 | -1/Command | Destroyed Executioner 21923 | -1/Command | Destroyed Investigator 21947 | -1/Command | Destroyed 23 combat bots 21950 | -1/Command | Assembled emerged from beneath the floor 22982 | -1/Command | Spotted M Guard 22982 | -1/Command | Spotted M Guard 22982 | -1/Command | Spotted Combat Programmer 22994 | -1/Command | Spotted Combat Programmer 23010 | -1/Command | Allies destroyed Combat Programmer 23018 | -1/Command | Destroyed Combat Programmer 23036 | -1/Command | Destroyed M Guard 23056 | -1/Command | Found Prototype Device 23056 | -1/Command | Identified Thermal Barrier 23148 | -1/Command | Destroyed M Guard 23148 | -1/Command | All MAIN.C guards destroyed 23280 | -1/Command | Assembled emerged from beneath the floor 23416 | -1/Command | Phase Generator disabled 24216 | -1/Command | Destroyed 22 combat bots 24287 | -1/Command | Destroyed 10 combat bots 24412 | -1/Command | Found Unknown Protection 24414 | -1/Command | Identified Hvy. Insulated Plating 24450 | -1/Command | Found Unknown Device 24450 | -1/Command | Identified Adv. Force Booster 24628 | -1/Command | Met MAIN.C 24628 | -1/Command | Reached level 39 24631 | -1/Command | 0b10 Conduit disabled 24662 | -1/Command | Destroyed MAIN.C Shell 24665 | -1/Command | MAIN.C activated Command garrisons 24705 | -1/Command | Destroyed MAIN.C 24724 | -1/Command | Found Prototype Protection 24724 | -1/Command | Identified Exp. Powered Armor 24856 | -1/Command | Destroyed 13 combat bots 25409 | -1/Command | Discovered new exit (range 7) 25449 | -1/Command | Found Prototype Device 25449 | -1/Command | Identified Beam Splitter 25452 | -1/Command | Found Prototype Device 25452 | -1/Command | Identified Exp. Hardlight Generator 25454 | -1/Command | Found Prototype Device 25454 | -1/Command | Identified EM Dispersion Field 25457 | -1/Command | Found Prototype Processor 25457 | -1/Command | Identified Spectral Analyzer 25461 | -1/Command | Found Prototype Reactor 25461 | -1/Command | Identified Zero-point Reactor 25468 | -1/Command | Found Prototype Protection 25468 | -1/Command | Identified SHELL Armor 25633 | -1/Command | Warped through subspace to slip node 25633 | -1/Command | Discovered new exit (range 5) 25637 | -1/Command | Entered Access_0 25638 | -1/Access_0 | Sensed 3 artifacts in vicinity 25640 | -1/Access_0 | Met Architect 25659 | -1/Access_0 | Destroyed A8 25665 | -1/Access_0 | Architect warped through subspace 25713 | -1/Access_0 | Architect warped through subspace 25753 | -1/Access_0 | Architect warped through subspace 25827 | -1/Access_0 | Emitted hypermatrix ping 25832 | -1/Access_0 | Assembled emerged from beneath the floor 25837 | -1/Access_0 | Architect warped through subspace 25841 | -1/Access_0 | Subspace Access Node disabled 25860 | -1/Access_0 | Subspace Access Node disabled 25865 | -1/Access_0 | A6 warped into view 25869 | -1/Access_0 | Subspace Access Node disabled 25893 | -1/Access_0 | Subspace Access Node disabled 25903 | -1/Access_0 | Destroyed A6 25907 | -1/Access_0 | Destroyed by Architect with Modified Quantum Sheargun Last Messages --------------- 25894_ Upgraded: Core Integrity (+100) 25897_ Slug penetrates A6. 25897_ A6 suffers critical hit. 25897_ Destroyed Unknown Piercing Weapon. 25897_ Slug penetrates A6. 25897_ A6 suffers critical hit. 25897_ Slug penetrates Architect. 25897_ Slug penetrates A6. 25897_ Slug penetrates Architect. 25900_ Slug penetrates A6. 25900_ Slug penetrates Architect. 25902_ Penetrated by Quantum Shear. 25902_ Critical hit. 25902_ HV Slug penetrates Subspace Access Node. 25903_ Slug penetrates A6. 25903_ Slug penetrates Wall. 25903_ A6: "Avenge me, architects!" 25903_ A6 destroyed. 25904_ Penetrated by Quantum Shear. 25906_ Slug penetrates Architect. Map ----- +----------------------------------------------------+ | ### #?#?#?#?##?######### ### ## #? ###### | | ### #?#####?############ ### # ? # ###### | | ### ############?#######"### # ## # ###### | | ### ###########"### #"## ### # # ##### | | ### ?########""! "" "" ## ## ## # | | ##? ########"""""" " ### ## # ## ? # | | ### ######## "# " ### # ######## # # | | ######"" ###" ""# # ## # | | ######" ## ;"= ## | | ######?## " # ]%!##### ########## | | ##?##### #" *!! " ## ########## | | ####### ""# #""g * ! " ## ######### | | " " # ;"= " # ######### | | "" " ; " """"" ####### | | ##### """ #####" ; " ###### | | ##### ""##### ##### #g # " ###### | | ####" "###### ####### ;##""""";"" ###### | | " "#" "###### ####### ##### "" ##### | | ####" """##### #####?#;hh#####"; " | | ##"" ###############; ##### "" " | | "" ## ######### "##;; """"" *!"""""## | | "" " ######### "" #" """" ! =!"" | | "###" "############# "" # !=! *"" | | "#### ################ !/!##" ! = " | | ###### ##?##############0%!###" ! """" | | #########################@!!#####" "" | | ######################### ;####### """ | | ######################### ;####### #" | | #####?##?################ # ### " " | | #######?#########?####### ######## #""""""" | | ######################### ###### "# " | | ###?##################### ##### ### ### | | ##?####?##########?###### ##### ####### | | ######??################ #### ###### | | #?##################### ### ## ####### | | ######################## ## ### ######## | | ########?####?########### ## ### ######### | | #################?##### ############# | | ############?######### ############ | | ##################### ###### ########### | | #########?########### ####### ########## | | ###########?######### ## ## ### ########### | | ############## ##;## ############ | | ######"# ### #### ############ | | ##### #" ### ### ###### ############# | | ##### "# ## ######## ############# | | ### " #################?###### | | ?####### "##" ########################## | | ###### ######## ####?##################### | | ? ### ####?###?# ### ##?################### | +----------------------------------------------------+ Best States ------------- Heat Dissipation 124 Energy Generation 87 Energy Capacity 1740 Matter Stores 800 Matter Capacity 1200 Sight Range 25 Terrain Scan Range 30 Terrain Scan Density 510 Cloak Strength 2 Power Amplification 30 Armor Coverage 900 Resistance: KI 20 Resistance: TH 75 Resistance: EX 20 Resistance: EM 50 Weapon Shielding 100 Point Defense Rating 320 Weapon Cycling 20 Phase Shifting 15 Evasion (%) 85 Targeting Accuracy 12 Launcher Accuracy 40 Target Analysis 6 Core Analysis 15 Armor Integrity Analysis 66 Recoil Reduction 6 Matter Filtering 50 Kinecelleration 50 Offensive Hacking 22 Defensive Hacking 10 Item Schematics ----------------- None Robot Schematics ------------------ None Fabricated ------------ Hyp. Gauss Rifle | x2 | -6/Factory Hyp. Gauss Rifle | x2 | -6/Factory Imp. Target Analyzer | x1 | -6/Factory Enh. Coil Gun | x1 | -5/Factory Imp. Kinecellerator | x1 | -5/Factory Prc. Matter Filter | x1 | -4/Factory Tiamat Missile Launcher | x1 | -4/Factory Alien Tech Used ----------------- Integrated Reactor Core Reset Matrix Integrated Dissipator Core Regenerator Transdimensional Reconstructor Achievements -------------- None Challenges ------------ None RPGLIKE | -11 -10 -10 -9 -9 -9 -8 -8 -8 -7 -7 -7 -7 -7 -6 -6 -6 -6 -6 -6 -5 -5 -5 -5 -4 -4 -4 -4 -4 -3 -3 -3 -3 -2 -2 -1 -1 -1 --------- Run | Scr Mat Min Mat Min Exi Min Mat Sto Fac Low Low Zio Dee Pro Fac Ext Cet Arc Hub Fac Upp Upp Zhi Pro Fac Upp Upp War Pro Res Arm Lab Res Tes Acc Com Ac0 Levels Raised 38 | . . 1 3 1 . 1 3 3 2 1 . . 1 1 1 1 1 . 1 3 . . . 1 2 . . 1 . 1 1 . 2 . 1 5 . XP Earned 60972 | 3000 985 1687 4489 750 200 2200 3746 4361 4081 891 357 220 458 1941 1656 1722 672 227 1668 4158 231 203 73 889 3236 320 190 726 824 1509 960 702 2288 641 1414 6950 347 XP Spent 59895 | 2920 . 1300 2050 2800 . . 6285 4580 3600 1000 . . 1250 1500 2000 820 2300 . . 3860 . . . 2900 3335 . . 800 . 3200 . . 3500 . . 9275 620 Upgrades 109 | 15 . 2 3 6 . . 22 9 3 1 . . 1 1 1 3 1 . . 6 . . . 1 11 . . 1 . 1 . . 1 . . 18 2 Power Slot 1 | . . . . . . . . . 1 . . . . . . . . . . . . . . . . . . . . . . . . . . . . Propulsion Slot 3 | 1 . . . 2 . . . . . . . . . . . . . . . . . . . . . . . . . . . . . . . . . Utility Slot 12 | . . . . . . . 2 1 2 . . . . . 1 . 1 . . 1 . . . 1 . . . . . 1 . . 1 . . 1 . Weapon Slot 4 | 1 . 1 1 . . . 1 . . . . . . . . . . . . . . . . . . . . . . . . . . . . . . Core Integrity 30 | 4 . . . . . . 2 2 . . . . . . . 2 . . . 4 . . . . 4 . . . . . . . . . . 10 2 Heat Dissipation 10 | 3 . . . . . . 5 . . . . . . . . . . . . . . . . . 2 . . . . . . . . . . . . Energy Generation 3 | . . . . . . . 1 . . . . . . . . . . . . . . . . . 1 . . . . . . . . . . 1 . Matter Storage 10 | . . . 1 . . . 1 . . . . . . . . . . . . . . . . . 2 . . . . . . . . . . 6 . Mass Support 2 | 1 . . . . . . . . . . . . . . . . . . . . . . . . 1 . . . . . . . . . . . . Inventory Capacity 6 | 1 . 1 1 . . . . . . 1 . . 1 1 . . . . . . . . . . . . . . . . . . . . . . . Sight Range 2 | . . . . . . . 2 . . . . . . . . . . . . . . . . . . . . . . . . . . . . . . Terrain Scan Density 3 | . . . . . . . 3 . . . . . . . . . . . . . . . . . . . . . . . . . . . . . . Ranged Accuracy 4 | 2 . . . . . . . . . . . . . . . 1 . . . 1 . . . . . . . . . . . . . . . . . Hack Attack % 2 | . . . . . . . 2 . . . . . . . . . . . . . . . . . . . . . . . . . . . . . . Hack Defense % 2 | . . . . . . . 2 . . . . . . . . . . . . . . . . . . . . . . . . . . . . . . KI Resistance % 4 | 1 . . . . . . . 3 . . . . . . . . . . . . . . . . . . . . . . . . . . . . . TH Resistance % 4 | 1 . . . . . . . 3 . . . . . . . . . . . . . . . . . . . . . . . . . . . . . EX Resistance % 4 | . . . . 4 . . . . . . . . . . . . . . . . . . . . . . . . . . . . . . . . . KI Damage % 3 | . . . . . . . 1 . . . . . . . . . . . . . . . . . 1 . . 1 . . . . . . . . . Protomatter Created 16332 | . 57 94 145 . . 260 141 417 260 262 134 146 366 294 268 476 156 71 339 1946 244 343 . 266 2055 198 154 880 243 518 217 . 693 185 165 3980 359 Integrity Restored 31068 | . 171 145 343 18 300 601 591 1130 640 519 117 701 988 820 241 735 129 22 590 3218 64 463 . 381 3414 372 75 1929 475 1065 309 . 1613 350 120 8212 207 Core 23435 | . 171 84 279 18 213 501 591 756 386 379 84 638 631 647 121 567 31 17 479 2483 53 373 . 296 2573 127 59 1308 381 840 309 . 1249 216 120 6248 207 Parts 7633 | . . 61 64 . 87 100 . 374 254 140 33 63 357 173 120 168 98 5 111 735 11 90 . 85 841 245 16 621 94 225 . . 364 134 . 1964 . Protomatter Decayed 14826 | . . . 101 101 . 50 . 189 52 69 83 87 27 131 118 296 412 168 229 432 221 232 . 116 675 99 271 1217 72 135 624 . 3788 352 35 4256 188 Game ------ Seed FlightBottomlessExpander Manual? 0 Play Time 06:06:25 Cumulative 620.2 hours Start 2021.07.18 @ 01:41:41 End 2021.07.18 @ 12:24:40 Sessions 5 Manual Loads 0 Difficulty Rogue Special Mode Winter2019/RPGLIKE Game No. 218 Rogue 218 Adventurer 0 Explorer 0 Win Type - Total 46 Types 26/3/7/4/3/0/2/0/1 Lore% 94 Gallery% 95 Achievement% 85 Wizard Run 0 Options --------- ASCII 0 Keyboard 0 Movement Mouse Keybinds 0 Fullscreen 2 Font 12/Smallcaps Map View 83x54 Tactical HUD 1 Map Filters NONE Filters NONE Steam X RUN: f7142915-d909-4ae0-ac46-b5cc3c06b9db